{"text_format":"1","workbook":"xlsx","n_sheets":143,"sheets":["7","9","10","11","12","13","14","15","16","17","18","19","20","21","22","23","24","25","26","27","28","29","30","31","32","33","34","35","36","37","38","39","40","41","42","43","44","45","46","47","48","49","50","51","52","53","54","55","56","57","58","59","60","61","62","63","64","65","66","67","68","69","70","71","72","73","74","75","76","77","78","79","80","81","82","83","84","85","86","87","88","89","90","91","92","93","94","95","96","97","98","99","100","101","102","103","104","105","106","107","108","109","110","111","112","113","114","115","116","ا (2)","117","118","119","120","121","122","123","124","125","126","127","128","129","130","131","132","133","134","data","ا","3","4","5","6","العميل","الرئسيه","كشف حساب","العملاء","صرف العملات","ورقة5","ورقة6","ورقة7","ورقة8"],"not_rendered":{"charts":0,"images":0,"macros":1,"external_links":0,"defined_names":0,"comments":0,"pivot_tables":0},"unopened":[],"bounds":{"document_bytes":16777216,"sheet_cells":100000,"rows_first":2000,"rows_last":500,"rows_between":2000,"halvings":0,"cell_chars":16384,"cell_head_chars":4096},"cells_cut":0,"cells_raw":0,"read":"whole","date_system":"1900"}

{"sheet":"7","index":0,"n_rows":24,"n_cols":14,"rows_kept":24,"cut":false,"hidden":false,"merged":[[0,11,0,12],[0,13,0,14],[1,11,1,12],[1,13,1,14],[2,11,2,12],[2,13,2,14]]}
[null,null,null,null,null,null,null,null,null,null,null,"الاجمالي عليه",null,{"$f":"SUM(D7:D24)","v":0}]
[null,null,null,null,null,null,null,null,null,null,null,"المتبقي",null,{"$f":"N1-N3","v":0}]
[null,null,null,null,null,null,null,null,null,null,null,"الاجمالي له",null,{"$f":"SUM(E7:E24)","v":0}]
[]
[]
[null,"     التاريخ","       البيان","المبلغ عليه","المبلغ له","ملاحضه1","ملاحضه2","ملاحضه3","ملاحضه4","ملاحضه5"]
[]
[]
[]
[]
[]
[]
[]
[]
[]
[]
[]
[]
[]
[]
[]
[]
[]
[null,null,"الاجمالي"]

{"sheet":"9","index":1,"n_rows":24,"n_cols":14,"rows_kept":24,"cut":false,"hidden":false,"merged":[[0,11,0,12],[0,13,0,14],[1,11,1,12],[1,13,1,14],[2,11,2,12],[2,13,2,14]]}
[null,null,null,null,null,null,null,null,null,null,null,"الاجمالي عليه",null,{"$f":"SUM(D7:D24)","v":0}]
[null,null,null,null,null,null,null,null,null,null,null,"المتبقي",null,{"$f":"N1-N3","v":0}]
[null,null,null,null,null,null,null,null,null,null,null,"الاجمالي له",null,{"$f":"SUM(E7:E24)","v":0}]
[]
[]
[null,"     التاريخ","       البيان","المبلغ عليه","المبلغ له","ملاحضه1","ملاحضه2","ملاحضه3","ملاحضه4","ملاحضه5"]
[]
[]
[]
[]
[]
[]
[]
[]
[]
[]
[]
[]
[]
[]
[]
[]
[]
[null,null,"الاجمالي"]

{"sheet":"10","index":2,"n_rows":24,"n_cols":14,"rows_kept":24,"cut":false,"hidden":false,"merged":[[0,11,0,12],[0,13,0,14],[1,11,1,12],[1,13,1,14],[2,11,2,12],[2,13,2,14]]}
[null,null,null,null,null,null,null,null,null,null,null,"الاجمالي عليه",null,{"$f":"SUM(D7:D24)","v":0}]
[null,null,null,null,null,null,null,null,null,null,null,"المتبقي",null,{"$f":"N1-N3","v":0}]
[null,null,null,null,null,null,null,null,null,null,null,"الاجمالي له",null,{"$f":"SUM(E7:E24)","v":0}]
[]
[]
[null,"     التاريخ","       البيان","المبلغ عليه","المبلغ له","ملاحضه1","ملاحضه2","ملاحضه3","ملاحضه4","ملاحضه5"]
[]
[]
[]
[]
[]
[]
[]
[]
[]
[]
[]
[]
[]
[]
[]
[]
[]
[null,null,"الاجمالي"]

{"sheet":"11","index":3,"n_rows":24,"n_cols":14,"rows_kept":24,"cut":false,"hidden":false,"merged":[[0,11,0,12],[0,13,0,14],[1,11,1,12],[1,13,1,14],[2,11,2,12],[2,13,2,14]]}
[null,null,null,null,null,null,null,null,null,null,null,"الاجمالي عليه",null,{"$f":"SUM(D7:D24)","v":0}]
[null,null,null,null,null,null,null,null,null,null,null,"المتبقي",null,{"$f":"N1-N3","v":0}]
[null,null,null,null,null,null,null,null,null,null,null,"الاجمالي له",null,{"$f":"SUM(E7:E24)","v":0}]
[]
[]
[null,"     التاريخ","       البيان","المبلغ عليه","المبلغ له","ملاحضه1","ملاحضه2","ملاحضه3","ملاحضه4","ملاحضه5"]
[]
[]
[]
[]
[]
[]
[]
[]
[]
[]
[]
[]
[]
[]
[]
[]
[]
[null,null,"الاجمالي"]

{"sheet":"12","index":4,"n_rows":24,"n_cols":14,"rows_kept":24,"cut":false,"hidden":false,"merged":[[0,11,0,12],[0,13,0,14],[1,11,1,12],[1,13,1,14],[2,11,2,12],[2,13,2,14]]}
[null,null,null,null,null,null,null,null,null,null,null,"الاجمالي عليه",null,{"$f":"SUM(D7:D24)","v":0}]
[null,null,null,null,null,null,null,null,null,null,null,"المتبقي",null,{"$f":"N1-N3","v":0}]
[null,null,null,null,null,null,null,null,null,null,null,"الاجمالي له",null,{"$f":"SUM(E7:E24)","v":0}]
[]
[]
[null,"     التاريخ","       البيان","المبلغ عليه","المبلغ له","ملاحضه1","ملاحضه2","ملاحضه3","ملاحضه4","ملاحضه5"]
[]
[]
[]
[]
[]
[]
[]
[]
[]
[]
[]
[]
[]
[]
[]
[]
[]
[null,null,"الاجمالي"]

{"sheet":"13","index":5,"n_rows":24,"n_cols":14,"rows_kept":24,"cut":false,"hidden":false,"merged":[[0,11,0,12],[0,13,0,14],[1,11,1,12],[1,13,1,14],[2,11,2,12],[2,13,2,14]]}
[null,null,null,null,null,null,null,null,null,null,null,"الاجمالي عليه",null,{"$f":"SUM(D7:D24)","v":0}]
[null,null,null,null,null,null,null,null,null,null,null,"المتبقي",null,{"$f":"N1-N3","v":0}]
[null,null,null,null,null,null,null,null,null,null,null,"الاجمالي له",null,{"$f":"SUM(E7:E24)","v":0}]
[]
[]
[null,"     التاريخ","       البيان","المبلغ عليه","المبلغ له","ملاحضه1","ملاحضه2","ملاحضه3","ملاحضه4","ملاحضه5"]
[]
[]
[]
[]
[]
[]
[]
[]
[]
[]
[]
[]
[]
[]
[]
[]
[]
[null,null,"الاجمالي"]

{"sheet":"14","index":6,"n_rows":24,"n_cols":14,"rows_kept":24,"cut":false,"hidden":false,"merged":[[0,11,0,12],[0,13,0,14],[1,11,1,12],[1,13,1,14],[2,11,2,12],[2,13,2,14]]}
[null,null,null,null,null,null,null,null,null,null,null,"الاجمالي عليه",null,{"$f":"SUM(D7:D24)","v":0}]
[null,null,null,null,null,null,null,null,null,null,null,"المتبقي",null,{"$f":"N1-N3","v":0}]
[null,null,null,null,null,null,null,null,null,null,null,"الاجمالي له",null,{"$f":"SUM(E7:E24)","v":0}]
[]
[]
[null,"     التاريخ","       البيان","المبلغ عليه","المبلغ له","ملاحضه1","ملاحضه2","ملاحضه3","ملاحضه4","ملاحضه5"]
[]
[]
[]
[]
[]
[]
[]
[]
[]
[]
[]
[]
[]
[]
[]
[]
[]
[null,null,"الاجمالي"]

{"sheet":"15","index":7,"n_rows":24,"n_cols":14,"rows_kept":24,"cut":false,"hidden":false,"merged":[[0,11,0,12],[0,13,0,14],[1,11,1,12],[1,13,1,14],[2,11,2,12],[2,13,2,14]]}
[null,null,null,null,null,null,null,null,null,null,null,"الاجمالي عليه",null,{"$f":"SUM(D7:D24)","v":0}]
[null,null,null,null,null,null,null,null,null,null,null,"المتبقي",null,{"$f":"N1-N3","v":0}]
[null,null,null,null,null,null,null,null,null,null,null,"الاجمالي له",null,{"$f":"SUM(E7:E24)","v":0}]
[]
[]
[null,"     التاريخ","       البيان","المبلغ عليه","المبلغ له","ملاحضه1","ملاحضه2","ملاحضه3","ملاحضه4","ملاحضه5"]
[]
[]
[]
[]
[]
[]
[]
[]
[]
[]
[]
[]
[]
[]
[]
[]
[]
[null,null,"الاجمالي"]

{"sheet":"16","index":8,"n_rows":24,"n_cols":14,"rows_kept":24,"cut":false,"hidden":false,"merged":[[0,11,0,12],[0,13,0,14],[1,11,1,12],[1,13,1,14],[2,11,2,12],[2,13,2,14]]}
[null,null,null,null,null,null,null,null,null,null,null,"الاجمالي عليه",null,{"$f":"SUM(D7:D24)","v":0}]
[null,null,null,null,null,null,null,null,null,null,null,"المتبقي",null,{"$f":"N1-N3","v":0}]
[null,null,null,null,null,null,null,null,null,null,null,"الاجمالي له",null,{"$f":"SUM(E7:E24)","v":0}]
[]
[]
[null,"     التاريخ","       البيان","المبلغ عليه","المبلغ له","ملاحضه1","ملاحضه2","ملاحضه3","ملاحضه4","ملاحضه5"]
[]
[]
[]
[]
[]
[]
[]
[]
[]
[]
[]
[]
[]
[]
[]
[]
[]
[null,null,"الاجمالي"]

{"sheet":"17","index":9,"n_rows":24,"n_cols":14,"rows_kept":24,"cut":false,"hidden":false,"merged":[[0,11,0,12],[0,13,0,14],[1,11,1,12],[1,13,1,14],[2,11,2,12],[2,13,2,14]]}
[null,null,null,null,null,null,null,null,null,null,null,"الاجمالي عليه",null,{"$f":"SUM(D7:D24)","v":0}]
[null,null,null,null,null,null,null,null,null,null,null,"المتبقي",null,{"$f":"N1-N3","v":0}]
[null,null,null,null,null,null,null,null,null,null,null,"الاجمالي له",null,{"$f":"SUM(E7:E24)","v":0}]
[]
[]
[null,"     التاريخ","       البيان","المبلغ عليه","المبلغ له","ملاحضه1","ملاحضه2","ملاحضه3","ملاحضه4","ملاحضه5"]
[]
[]
[]
[]
[]
[]
[]
[]
[]
[]
[]
[]
[]
[]
[]
[]
[]
[null,null,"الاجمالي"]

{"sheet":"18","index":10,"n_rows":24,"n_cols":14,"rows_kept":24,"cut":false,"hidden":false,"merged":[[0,11,0,12],[0,13,0,14],[1,11,1,12],[1,13,1,14],[2,11,2,12],[2,13,2,14]]}
[null,null,null,null,null,null,null,null,null,null,null,"الاجمالي عليه",null,{"$f":"SUM(D7:D24)","v":0}]
[null,null,null,null,null,null,null,null,null,null,null,"المتبقي",null,{"$f":"N1-N3","v":0}]
[null,null,null,null,null,null,null,null,null,null,null,"الاجمالي له",null,{"$f":"SUM(E7:E24)","v":0}]
[]
[]
[null,"     التاريخ","       البيان","المبلغ عليه","المبلغ له","ملاحضه1","ملاحضه2","ملاحضه3","ملاحضه4","ملاحضه5"]
[]
[]
[]
[]
[]
[]
[]
[]
[]
[]
[]
[]
[]
[]
[]
[]
[]
[null,null,"الاجمالي"]

{"sheet":"19","index":11,"n_rows":24,"n_cols":14,"rows_kept":24,"cut":false,"hidden":false,"merged":[[0,11,0,12],[0,13,0,14],[1,11,1,12],[1,13,1,14],[2,11,2,12],[2,13,2,14]]}
[null,null,null,null,null,null,null,null,null,null,null,"الاجمالي عليه",null,{"$f":"SUM(D7:D24)","v":0}]
[null,null,null,null,null,null,null,null,null,null,null,"المتبقي",null,{"$f":"N1-N3","v":0}]
[null,null,null,null,null,null,null,null,null,null,null,"الاجمالي له",null,{"$f":"SUM(E7:E24)","v":0}]
[]
[]
[null,"     التاريخ","       البيان","المبلغ عليه","المبلغ له","ملاحضه1","ملاحضه2","ملاحضه3","ملاحضه4","ملاحضه5"]
[]
[]
[]
[]
[]
[]
[]
[]
[]
[]
[]
[]
[]
[]
[]
[]
[]
[null,null,"الاجمالي"]

{"sheet":"20","index":12,"n_rows":24,"n_cols":14,"rows_kept":24,"cut":false,"hidden":false,"merged":[[0,11,0,12],[0,13,0,14],[1,11,1,12],[1,13,1,14],[2,11,2,12],[2,13,2,14]]}
[null,null,null,null,null,null,null,null,null,null,null,"الاجمالي عليه",null,{"$f":"SUM(D7:D24)","v":0}]
[null,null,null,null,null,null,null,null,null,null,null,"المتبقي",null,{"$f":"N1-N3","v":0}]
[null,null,null,null,null,null,null,null,null,null,null,"الاجمالي له",null,{"$f":"SUM(E7:E24)","v":0}]
[]
[]
[null,"     التاريخ","       البيان","المبلغ عليه","المبلغ له","ملاحضه1","ملاحضه2","ملاحضه3","ملاحضه4","ملاحضه5"]
[]
[]
[]
[]
[]
[]
[]
[]
[]
[]
[]
[]
[]
[]
[]
[]
[]
[null,null,"الاجمالي"]

{"sheet":"21","index":13,"n_rows":24,"n_cols":14,"rows_kept":24,"cut":false,"hidden":false,"merged":[[0,11,0,12],[0,13,0,14],[1,11,1,12],[1,13,1,14],[2,11,2,12],[2,13,2,14]]}
[null,null,null,null,null,null,null,null,null,null,null,"الاجمالي عليه",null,{"$f":"SUM(D7:D24)","v":0}]
[null,null,null,null,null,null,null,null,null,null,null,"المتبقي",null,{"$f":"N1-N3","v":0}]
[null,null,null,null,null,null,null,null,null,null,null,"الاجمالي له",null,{"$f":"SUM(E7:E24)","v":0}]
[]
[]
[null,"     التاريخ","       البيان","المبلغ عليه","المبلغ له","ملاحضه1","ملاحضه2","ملاحضه3","ملاحضه4","ملاحضه5"]
[]
[]
[]
[]
[]
[]
[]
[]
[]
[]
[]
[]
[]
[]
[]
[]
[]
[null,null,"الاجمالي"]

{"sheet":"22","index":14,"n_rows":24,"n_cols":14,"rows_kept":24,"cut":false,"hidden":false,"merged":[[0,11,0,12],[0,13,0,14],[1,11,1,12],[1,13,1,14],[2,11,2,12],[2,13,2,14]]}
[null,null,null,null,null,null,null,null,null,null,null,"الاجمالي عليه",null,{"$f":"SUM(D7:D24)","v":0}]
[null,null,null,null,null,null,null,null,null,null,null,"المتبقي",null,{"$f":"N1-N3","v":0}]
[null,null,null,null,null,null,null,null,null,null,null,"الاجمالي له",null,{"$f":"SUM(E7:E24)","v":0}]
[]
[]
[null,"     التاريخ","       البيان","المبلغ عليه","المبلغ له","ملاحضه1","ملاحضه2","ملاحضه3","ملاحضه4","ملاحضه5"]
[]
[]
[]
[]
[]
[]
[]
[]
[]
[]
[]
[]
[]
[]
[]
[]
[]
[null,null,"الاجمالي"]

{"sheet":"23","index":15,"n_rows":24,"n_cols":14,"rows_kept":24,"cut":false,"hidden":false,"merged":[[0,11,0,12],[0,13,0,14],[1,11,1,12],[1,13,1,14],[2,11,2,12],[2,13,2,14]]}
[null,null,null,null,null,null,null,null,null,null,null,"الاجمالي عليه",null,{"$f":"SUM(D7:D24)","v":0}]
[null,null,null,null,null,null,null,null,null,null,null,"المتبقي",null,{"$f":"N1-N3","v":0}]
[null,null,null,null,null,null,null,null,null,null,null,"الاجمالي له",null,{"$f":"SUM(E7:E24)","v":0}]
[]
[]
[null,"     التاريخ","       البيان","المبلغ عليه","المبلغ له","ملاحضه1","ملاحضه2","ملاحضه3","ملاحضه4","ملاحضه5"]
[]
[]
[]
[]
[]
[]
[]
[]
[]
[]
[]
[]
[]
[]
[]
[]
[]
[null,null,"الاجمالي"]

{"sheet":"24","index":16,"n_rows":24,"n_cols":14,"rows_kept":24,"cut":false,"hidden":false,"merged":[[0,11,0,12],[0,13,0,14],[1,11,1,12],[1,13,1,14],[2,11,2,12],[2,13,2,14]]}
[null,null,null,null,null,null,null,null,null,null,null,"الاجمالي عليه",null,{"$f":"SUM(D7:D24)","v":0}]
[null,null,null,null,null,null,null,null,null,null,null,"المتبقي",null,{"$f":"N1-N3","v":0}]
[null,null,null,null,null,null,null,null,null,null,null,"الاجمالي له",null,{"$f":"SUM(E7:E24)","v":0}]
[]
[]
[null,"     التاريخ","       البيان","المبلغ عليه","المبلغ له","ملاحضه1","ملاحضه2","ملاحضه3","ملاحضه4","ملاحضه5"]
[]
[]
[]
[]
[]
[]
[]
[]
[]
[]
[]
[]
[]
[]
[]
[]
[]
[null,null,"الاجمالي"]

{"sheet":"25","index":17,"n_rows":24,"n_cols":14,"rows_kept":24,"cut":false,"hidden":false,"merged":[[0,11,0,12],[0,13,0,14],[1,11,1,12],[1,13,1,14],[2,11,2,12],[2,13,2,14]]}
[null,null,null,null,null,null,null,null,null,null,null,"الاجمالي عليه",null,{"$f":"SUM(D7:D24)","v":0}]
[null,null,null,null,null,null,null,null,null,null,null,"المتبقي",null,{"$f":"N1-N3","v":0}]
[null,null,null,null,null,null,null,null,null,null,null,"الاجمالي له",null,{"$f":"SUM(E7:E24)","v":0}]
[]
[]
[null,"     التاريخ","       البيان","المبلغ عليه","المبلغ له","ملاحضه1","ملاحضه2","ملاحضه3","ملاحضه4","ملاحضه5"]
[]
[]
[]
[]
[]
[]
[]
[]
[]
[]
[]
[]
[]
[]
[]
[]
[]
[null,null,"الاجمالي"]

{"sheet":"26","index":18,"n_rows":24,"n_cols":14,"rows_kept":24,"cut":false,"hidden":false,"merged":[[0,11,0,12],[0,13,0,14],[1,11,1,12],[1,13,1,14],[2,11,2,12],[2,13,2,14]]}
[null,null,null,null,null,null,null,null,null,null,null,"الاجمالي عليه",null,{"$f":"SUM(D7:D24)","v":0}]
[null,null,null,null,null,null,null,null,null,null,null,"المتبقي",null,{"$f":"N1-N3","v":0}]
[null,null,null,null,null,null,null,null,null,null,null,"الاجمالي له",null,{"$f":"SUM(E7:E24)","v":0}]
[]
[]
[null,"     التاريخ","       البيان","المبلغ عليه","المبلغ له","ملاحضه1","ملاحضه2","ملاحضه3","ملاحضه4","ملاحضه5"]
[]
[]
[]
[]
[]
[]
[]
[]
[]
[]
[]
[]
[]
[]
[]
[]
[]
[null,null,"الاجمالي"]

{"sheet":"27","index":19,"n_rows":24,"n_cols":14,"rows_kept":24,"cut":false,"hidden":false,"merged":[[0,11,0,12],[0,13,0,14],[1,11,1,12],[1,13,1,14],[2,11,2,12],[2,13,2,14]]}
[null,null,null,null,null,null,null,null,null,null,null,"الاجمالي عليه",null,{"$f":"SUM(D7:D24)","v":0}]
[null,null,null,null,null,null,null,null,null,null,null,"المتبقي",null,{"$f":"N1-N3","v":0}]
[null,null,null,null,null,null,null,null,null,null,null,"الاجمالي له",null,{"$f":"SUM(E7:E24)","v":0}]
[]
[]
[null,"     التاريخ","       البيان","المبلغ عليه","المبلغ له","ملاحضه1","ملاحضه2","ملاحضه3","ملاحضه4","ملاحضه5"]
[]
[]
[]
[]
[]
[]
[]
[]
[]
[]
[]
[]
[]
[]
[]
[]
[]
[null,null,"الاجمالي"]

{"sheet":"28","index":20,"n_rows":24,"n_cols":14,"rows_kept":24,"cut":false,"hidden":false,"merged":[[0,11,0,12],[0,13,0,14],[1,11,1,12],[1,13,1,14],[2,11,2,12],[2,13,2,14]]}
[null,null,null,null,null,null,null,null,null,null,null,"الاجمالي عليه",null,{"$f":"SUM(D7:D24)","v":0}]
[null,null,null,null,null,null,null,null,null,null,null,"المتبقي",null,{"$f":"N1-N3","v":0}]
[null,null,null,null,null,null,null,null,null,null,null,"الاجمالي له",null,{"$f":"SUM(E7:E24)","v":0}]
[]
[]
[null,"     التاريخ","       البيان","المبلغ عليه","المبلغ له","ملاحضه1","ملاحضه2","ملاحضه3","ملاحضه4","ملاحضه5"]
[]
[]
[]
[]
[]
[]
[]
[]
[]
[]
[]
[]
[]
[]
[]
[]
[]
[null,null,"الاجمالي"]

{"sheet":"29","index":21,"n_rows":24,"n_cols":14,"rows_kept":24,"cut":false,"hidden":false,"merged":[[0,11,0,12],[0,13,0,14],[1,11,1,12],[1,13,1,14],[2,11,2,12],[2,13,2,14]]}
[null,null,null,null,null,null,null,null,null,null,null,"الاجمالي عليه",null,{"$f":"SUM(D7:D24)","v":0}]
[null,null,null,null,null,null,null,null,null,null,null,"المتبقي",null,{"$f":"N1-N3","v":0}]
[null,null,null,null,null,null,null,null,null,null,null,"الاجمالي له",null,{"$f":"SUM(E7:E24)","v":0}]
[]
[]
[null,"     التاريخ","       البيان","المبلغ عليه","المبلغ له","ملاحضه1","ملاحضه2","ملاحضه3","ملاحضه4","ملاحضه5"]
[]
[]
[]
[]
[]
[]
[]
[]
[]
[]
[]
[]
[]
[]
[]
[]
[]
[null,null,"الاجمالي"]

{"sheet":"30","index":22,"n_rows":24,"n_cols":14,"rows_kept":24,"cut":false,"hidden":false,"merged":[[0,11,0,12],[0,13,0,14],[1,11,1,12],[1,13,1,14],[2,11,2,12],[2,13,2,14]]}
[null,null,null,null,null,null,null,null,null,null,null,"الاجمالي عليه",null,{"$f":"SUM(D7:D24)","v":0}]
[null,null,null,null,null,null,null,null,null,null,null,"المتبقي",null,{"$f":"N1-N3","v":0}]
[null,null,null,null,null,null,null,null,null,null,null,"الاجمالي له",null,{"$f":"SUM(E7:E24)","v":0}]
[]
[]
[null,"     التاريخ","       البيان","المبلغ عليه","المبلغ له","ملاحضه1","ملاحضه2","ملاحضه3","ملاحضه4","ملاحضه5"]
[]
[]
[]
[]
[]
[]
[]
[]
[]
[]
[]
[]
[]
[]
[]
[]
[]
[null,null,"الاجمالي"]

{"sheet":"31","index":23,"n_rows":24,"n_cols":14,"rows_kept":24,"cut":false,"hidden":false,"merged":[[0,11,0,12],[0,13,0,14],[1,11,1,12],[1,13,1,14],[2,11,2,12],[2,13,2,14]]}
[null,null,null,null,null,null,null,null,null,null,null,"الاجمالي عليه",null,{"$f":"SUM(D7:D24)","v":0}]
[null,null,null,null,null,null,null,null,null,null,null,"المتبقي",null,{"$f":"N1-N3","v":0}]
[null,null,null,null,null,null,null,null,null,null,null,"الاجمالي له",null,{"$f":"SUM(E7:E24)","v":0}]
[]
[]
[null,"     التاريخ","       البيان","المبلغ عليه","المبلغ له","ملاحضه1","ملاحضه2","ملاحضه3","ملاحضه4","ملاحضه5"]
[]
[]
[]
[]
[]
[]
[]
[]
[]
[]
[]
[]
[]
[]
[]
[]
[]
[null,null,"الاجمالي"]

{"sheet":"32","index":24,"n_rows":24,"n_cols":14,"rows_kept":24,"cut":false,"hidden":false,"merged":[[0,11,0,12],[0,13,0,14],[1,11,1,12],[1,13,1,14],[2,11,2,12],[2,13,2,14]]}
[null,null,null,null,null,null,null,null,null,null,null,"الاجمالي عليه",null,{"$f":"SUM(D7:D24)","v":0}]
[null,null,null,null,null,null,null,null,null,null,null,"المتبقي",null,{"$f":"N1-N3","v":0}]
[null,null,null,null,null,null,null,null,null,null,null,"الاجمالي له",null,{"$f":"SUM(E7:E24)","v":0}]
[]
[]
[null,"     التاريخ","       البيان","المبلغ عليه","المبلغ له","ملاحضه1","ملاحضه2","ملاحضه3","ملاحضه4","ملاحضه5"]
[]
[]
[]
[]
[]
[]
[]
[]
[]
[]
[]
[]
[]
[]
[]
[]
[]
[null,null,"الاجمالي"]

{"sheet":"33","index":25,"n_rows":24,"n_cols":14,"rows_kept":24,"cut":false,"hidden":false,"merged":[[0,11,0,12],[0,13,0,14],[1,11,1,12],[1,13,1,14],[2,11,2,12],[2,13,2,14]]}
[null,null,null,null,null,null,null,null,null,null,null,"الاجمالي عليه",null,{"$f":"SUM(D7:D24)","v":0}]
[null,null,null,null,null,null,null,null,null,null,null,"المتبقي",null,{"$f":"N1-N3","v":0}]
[null,null,null,null,null,null,null,null,null,null,null,"الاجمالي له",null,{"$f":"SUM(E7:E24)","v":0}]
[]
[]
[null,"     التاريخ","       البيان","المبلغ عليه","المبلغ له","ملاحضه1","ملاحضه2","ملاحضه3","ملاحضه4","ملاحضه5"]
[]
[]
[]
[]
[]
[]
[]
[]
[]
[]
[]
[]
[]
[]
[]
[]
[]
[null,null,"الاجمالي"]

{"sheet":"34","index":26,"n_rows":24,"n_cols":14,"rows_kept":24,"cut":false,"hidden":false,"merged":[[0,11,0,12],[0,13,0,14],[1,11,1,12],[1,13,1,14],[2,11,2,12],[2,13,2,14]]}
[null,null,null,null,null,null,null,null,null,null,null,"الاجمالي عليه",null,{"$f":"SUM(D7:D24)","v":0}]
[null,null,null,null,null,null,null,null,null,null,null,"المتبقي",null,{"$f":"N1-N3","v":0}]
[null,null,null,null,null,null,null,null,null,null,null,"الاجمالي له",null,{"$f":"SUM(E7:E24)","v":0}]
[]
[]
[null,"     التاريخ","       البيان","المبلغ عليه","المبلغ له","ملاحضه1","ملاحضه2","ملاحضه3","ملاحضه4","ملاحضه5"]
[]
[]
[]
[]
[]
[]
[]
[]
[]
[]
[]
[]
[]
[]
[]
[]
[]
[null,null,"الاجمالي"]

{"sheet":"35","index":27,"n_rows":24,"n_cols":14,"rows_kept":24,"cut":false,"hidden":false,"merged":[[0,11,0,12],[0,13,0,14],[1,11,1,12],[1,13,1,14],[2,11,2,12],[2,13,2,14]]}
[null,null,null,null,null,null,null,null,null,null,null,"الاجمالي عليه",null,{"$f":"SUM(D7:D24)","v":0}]
[null,null,null,null,null,null,null,null,null,null,null,"المتبقي",null,{"$f":"N1-N3","v":0}]
[null,null,null,null,null,null,null,null,null,null,null,"الاجمالي له",null,{"$f":"SUM(E7:E24)","v":0}]
[]
[]
[null,"     التاريخ","       البيان","المبلغ عليه","المبلغ له","ملاحضه1","ملاحضه2","ملاحضه3","ملاحضه4","ملاحضه5"]
[]
[]
[]
[]
[]
[]
[]
[]
[]
[]
[]
[]
[]
[]
[]
[]
[]
[null,null,"الاجمالي"]

{"sheet":"36","index":28,"n_rows":24,"n_cols":14,"rows_kept":24,"cut":false,"hidden":false,"merged":[[0,11,0,12],[0,13,0,14],[1,11,1,12],[1,13,1,14],[2,11,2,12],[2,13,2,14]]}
[null,null,null,null,null,null,null,null,null,null,null,"الاجمالي عليه",null,{"$f":"SUM(D7:D24)","v":0}]
[null,null,null,null,null,null,null,null,null,null,null,"المتبقي",null,{"$f":"N1-N3","v":0}]
[null,null,null,null,null,null,null,null,null,null,null,"الاجمالي له",null,{"$f":"SUM(E7:E24)","v":0}]
[]
[]
[null,"     التاريخ","       البيان","المبلغ عليه","المبلغ له","ملاحضه1","ملاحضه2","ملاحضه3","ملاحضه4","ملاحضه5"]
[]
[]
[]
[]
[]
[]
[]
[]
[]
[]
[]
[]
[]
[]
[]
[]
[]
[null,null,"الاجمالي"]

{"sheet":"37","index":29,"n_rows":24,"n_cols":14,"rows_kept":24,"cut":false,"hidden":false,"merged":[[0,11,0,12],[0,13,0,14],[1,11,1,12],[1,13,1,14],[2,11,2,12],[2,13,2,14]]}
[null,null,null,null,null,null,null,null,null,null,null,"الاجمالي عليه",null,{"$f":"SUM(D7:D24)","v":0}]
[null,null,null,null,null,null,null,null,null,null,null,"المتبقي",null,{"$f":"N1-N3","v":0}]
[null,null,null,null,null,null,null,null,null,null,null,"الاجمالي له",null,{"$f":"SUM(E7:E24)","v":0}]
[]
[]
[null,"     التاريخ","       البيان","المبلغ عليه","المبلغ له","ملاحضه1","ملاحضه2","ملاحضه3","ملاحضه4","ملاحضه5"]
[]
[]
[]
[]
[]
[]
[]
[]
[]
[]
[]
[]
[]
[]
[]
[]
[]
[null,null,"الاجمالي"]

{"sheet":"38","index":30,"n_rows":24,"n_cols":14,"rows_kept":24,"cut":false,"hidden":false,"merged":[[0,11,0,12],[0,13,0,14],[1,11,1,12],[1,13,1,14],[2,11,2,12],[2,13,2,14]]}
[null,null,null,null,null,null,null,null,null,null,null,"الاجمالي عليه",null,{"$f":"SUM(D7:D24)","v":0}]
[null,null,null,null,null,null,null,null,null,null,null,"المتبقي",null,{"$f":"N1-N3","v":0}]
[null,null,null,null,null,null,null,null,null,null,null,"الاجمالي له",null,{"$f":"SUM(E7:E24)","v":0}]
[]
[]
[null,"     التاريخ","       البيان","المبلغ عليه","المبلغ له","ملاحضه1","ملاحضه2","ملاحضه3","ملاحضه4","ملاحضه5"]
[]
[]
[]
[]
[]
[]
[]
[]
[]
[]
[]
[]
[]
[]
[]
[]
[]
[null,null,"الاجمالي"]

{"sheet":"39","index":31,"n_rows":24,"n_cols":14,"rows_kept":24,"cut":false,"hidden":false,"merged":[[0,11,0,12],[0,13,0,14],[1,11,1,12],[1,13,1,14],[2,11,2,12],[2,13,2,14]]}
[null,null,null,null,null,null,null,null,null,null,null,"الاجمالي عليه",null,{"$f":"SUM(D7:D24)","v":0}]
[null,null,null,null,null,null,null,null,null,null,null,"المتبقي",null,{"$f":"N1-N3","v":0}]
[null,null,null,null,null,null,null,null,null,null,null,"الاجمالي له",null,{"$f":"SUM(E7:E24)","v":0}]
[]
[]
[null,"     التاريخ","       البيان","المبلغ عليه","المبلغ له","ملاحضه1","ملاحضه2","ملاحضه3","ملاحضه4","ملاحضه5"]
[]
[]
[]
[]
[]
[]
[]
[]
[]
[]
[]
[]
[]
[]
[]
[]
[]
[null,null,"الاجمالي"]

{"sheet":"40","index":32,"n_rows":24,"n_cols":14,"rows_kept":24,"cut":false,"hidden":false,"merged":[[0,11,0,12],[0,13,0,14],[1,11,1,12],[1,13,1,14],[2,11,2,12],[2,13,2,14]]}
[null,null,null,null,null,null,null,null,null,null,null,"الاجمالي عليه",null,{"$f":"SUM(D7:D24)","v":0}]
[null,null,null,null,null,null,null,null,null,null,null,"المتبقي",null,{"$f":"N1-N3","v":0}]
[null,null,null,null,null,null,null,null,null,null,null,"الاجمالي له",null,{"$f":"SUM(E7:E24)","v":0}]
[]
[]
[null,"     التاريخ","       البيان","المبلغ عليه","المبلغ له","ملاحضه1","ملاحضه2","ملاحضه3","ملاحضه4","ملاحضه5"]
[]
[]
[]
[]
[]
[]
[]
[]
[]
[]
[]
[]
[]
[]
[]
[]
[]
[null,null,"الاجمالي"]

{"sheet":"41","index":33,"n_rows":24,"n_cols":14,"rows_kept":24,"cut":false,"hidden":false,"merged":[[0,11,0,12],[0,13,0,14],[1,11,1,12],[1,13,1,14],[2,11,2,12],[2,13,2,14]]}
[null,null,null,null,null,null,null,null,null,null,null,"الاجمالي عليه",null,{"$f":"SUM(D7:D24)","v":0}]
[null,null,null,null,null,null,null,null,null,null,null,"المتبقي",null,{"$f":"N1-N3","v":0}]
[null,null,null,null,null,null,null,null,null,null,null,"الاجمالي له",null,{"$f":"SUM(E7:E24)","v":0}]
[]
[]
[null,"     التاريخ","       البيان","المبلغ عليه","المبلغ له","ملاحضه1","ملاحضه2","ملاحضه3","ملاحضه4","ملاحضه5"]
[]
[]
[]
[]
[]
[]
[]
[]
[]
[]
[]
[]
[]
[]
[]
[]
[]
[null,null,"الاجمالي"]

{"sheet":"42","index":34,"n_rows":24,"n_cols":14,"rows_kept":24,"cut":false,"hidden":false,"merged":[[0,11,0,12],[0,13,0,14],[1,11,1,12],[1,13,1,14],[2,11,2,12],[2,13,2,14]]}
[null,null,null,null,null,null,null,null,null,null,null,"الاجمالي عليه",null,{"$f":"SUM(D7:D24)","v":0}]
[null,null,null,null,null,null,null,null,null,null,null,"المتبقي",null,{"$f":"N1-N3","v":0}]
[null,null,null,null,null,null,null,null,null,null,null,"الاجمالي له",null,{"$f":"SUM(E7:E24)","v":0}]
[]
[]
[null,"     التاريخ","       البيان","المبلغ عليه","المبلغ له","ملاحضه1","ملاحضه2","ملاحضه3","ملاحضه4","ملاحضه5"]
[]
[]
[]
[]
[]
[]
[]
[]
[]
[]
[]
[]
[]
[]
[]
[]
[]
[null,null,"الاجمالي"]

{"sheet":"43","index":35,"n_rows":24,"n_cols":14,"rows_kept":24,"cut":false,"hidden":false,"merged":[[0,11,0,12],[0,13,0,14],[1,11,1,12],[1,13,1,14],[2,11,2,12],[2,13,2,14]]}
[null,null,null,null,null,null,null,null,null,null,null,"الاجمالي عليه",null,{"$f":"SUM(D7:D24)","v":0}]
[null,null,null,null,null,null,null,null,null,null,null,"المتبقي",null,{"$f":"N1-N3","v":0}]
[null,null,null,null,null,null,null,null,null,null,null,"الاجمالي له",null,{"$f":"SUM(E7:E24)","v":0}]
[]
[]
[null,"     التاريخ","       البيان","المبلغ عليه","المبلغ له","ملاحضه1","ملاحضه2","ملاحضه3","ملاحضه4","ملاحضه5"]
[]
[]
[]
[]
[]
[]
[]
[]
[]
[]
[]
[]
[]
[]
[]
[]
[]
[null,null,"الاجمالي"]

{"sheet":"44","index":36,"n_rows":24,"n_cols":14,"rows_kept":24,"cut":false,"hidden":false,"merged":[[0,11,0,12],[0,13,0,14],[1,11,1,12],[1,13,1,14],[2,11,2,12],[2,13,2,14]]}
[null,null,null,null,null,null,null,null,null,null,null,"الاجمالي عليه",null,{"$f":"SUM(D7:D24)","v":0}]
[null,null,null,null,null,null,null,null,null,null,null,"المتبقي",null,{"$f":"N1-N3","v":0}]
[null,null,null,null,null,null,null,null,null,null,null,"الاجمالي له",null,{"$f":"SUM(E7:E24)","v":0}]
[]
[]
[null,"     التاريخ","       البيان","المبلغ عليه","المبلغ له","ملاحضه1","ملاحضه2","ملاحضه3","ملاحضه4","ملاحضه5"]
[]
[]
[]
[]
[]
[]
[]
[]
[]
[]
[]
[]
[]
[]
[]
[]
[]
[null,null,"الاجمالي"]

{"sheet":"45","index":37,"n_rows":24,"n_cols":14,"rows_kept":24,"cut":false,"hidden":false,"merged":[[0,11,0,12],[0,13,0,14],[1,11,1,12],[1,13,1,14],[2,11,2,12],[2,13,2,14]]}
[null,null,null,null,null,null,null,null,null,null,null,"الاجمالي عليه",null,{"$f":"SUM(D7:D24)","v":0}]
[null,null,null,null,null,null,null,null,null,null,null,"المتبقي",null,{"$f":"N1-N3","v":0}]
[null,null,null,null,null,null,null,null,null,null,null,"الاجمالي له",null,{"$f":"SUM(E7:E24)","v":0}]
[]
[]
[null,"     التاريخ","       البيان","المبلغ عليه","المبلغ له","ملاحضه1","ملاحضه2","ملاحضه3","ملاحضه4","ملاحضه5"]
[]
[]
[]
[]
[]
[]
[]
[]
[]
[]
[]
[]
[]
[]
[]
[]
[]
[null,null,"الاجمالي"]

{"sheet":"46","index":38,"n_rows":24,"n_cols":14,"rows_kept":24,"cut":false,"hidden":false,"merged":[[0,11,0,12],[0,13,0,14],[1,11,1,12],[1,13,1,14],[2,11,2,12],[2,13,2,14]]}
[null,null,null,null,null,null,null,null,null,null,null,"الاجمالي عليه",null,{"$f":"SUM(D7:D24)","v":0}]
[null,null,null,null,null,null,null,null,null,null,null,"المتبقي",null,{"$f":"N1-N3","v":0}]
[null,null,null,null,null,null,null,null,null,null,null,"الاجمالي له",null,{"$f":"SUM(E7:E24)","v":0}]
[]
[]
[null,"     التاريخ","       البيان","المبلغ عليه","المبلغ له","ملاحضه1","ملاحضه2","ملاحضه3","ملاحضه4","ملاحضه5"]
[]
[]
[]
[]
[]
[]
[]
[]
[]
[]
[]
[]
[]
[]
[]
[]
[]
[null,null,"الاجمالي"]

{"sheet":"47","index":39,"n_rows":24,"n_cols":14,"rows_kept":24,"cut":false,"hidden":false,"merged":[[0,11,0,12],[0,13,0,14],[1,11,1,12],[1,13,1,14],[2,11,2,12],[2,13,2,14]]}
[null,null,null,null,null,null,null,null,null,null,null,"الاجمالي عليه",null,{"$f":"SUM(D7:D24)","v":0}]
[null,null,null,null,null,null,null,null,null,null,null,"المتبقي",null,{"$f":"N1-N3","v":0}]
[null,null,null,null,null,null,null,null,null,null,null,"الاجمالي له",null,{"$f":"SUM(E7:E24)","v":0}]
[]
[]
[null,"     التاريخ","       البيان","المبلغ عليه","المبلغ له","ملاحضه1","ملاحضه2","ملاحضه3","ملاحضه4","ملاحضه5"]
[]
[]
[]
[]
[]
[]
[]
[]
[]
[]
[]
[]
[]
[]
[]
[]
[]
[null,null,"الاجمالي"]

{"sheet":"48","index":40,"n_rows":24,"n_cols":14,"rows_kept":24,"cut":false,"hidden":false,"merged":[[0,11,0,12],[0,13,0,14],[1,11,1,12],[1,13,1,14],[2,11,2,12],[2,13,2,14]]}
[null,null,null,null,null,null,null,null,null,null,null,"الاجمالي عليه",null,{"$f":"SUM(D7:D24)","v":0}]
[null,null,null,null,null,null,null,null,null,null,null,"المتبقي",null,{"$f":"N1-N3","v":0}]
[null,null,null,null,null,null,null,null,null,null,null,"الاجمالي له",null,{"$f":"SUM(E7:E24)","v":0}]
[]
[]
[null,"     التاريخ","       البيان","المبلغ عليه","المبلغ له","ملاحضه1","ملاحضه2","ملاحضه3","ملاحضه4","ملاحضه5"]
[]
[]
[]
[]
[]
[]
[]
[]
[]
[]
[]
[]
[]
[]
[]
[]
[]
[null,null,"الاجمالي"]

{"sheet":"49","index":41,"n_rows":24,"n_cols":14,"rows_kept":24,"cut":false,"hidden":false,"merged":[[0,11,0,12],[0,13,0,14],[1,11,1,12],[1,13,1,14],[2,11,2,12],[2,13,2,14]]}
[null,null,null,null,null,null,null,null,null,null,null,"الاجمالي عليه",null,{"$f":"SUM(D7:D24)","v":0}]
[null,null,null,null,null,null,null,null,null,null,null,"المتبقي",null,{"$f":"N1-N3","v":0}]
[null,null,null,null,null,null,null,null,null,null,null,"الاجمالي له",null,{"$f":"SUM(E7:E24)","v":0}]
[]
[]
[null,"     التاريخ","       البيان","المبلغ عليه","المبلغ له","ملاحضه1","ملاحضه2","ملاحضه3","ملاحضه4","ملاحضه5"]
[]
[]
[]
[]
[]
[]
[]
[]
[]
[]
[]
[]
[]
[]
[]
[]
[]
[null,null,"الاجمالي"]

{"sheet":"50","index":42,"n_rows":24,"n_cols":14,"rows_kept":24,"cut":false,"hidden":false,"merged":[[0,11,0,12],[0,13,0,14],[1,11,1,12],[1,13,1,14],[2,11,2,12],[2,13,2,14]]}
[null,null,null,null,null,null,null,null,null,null,null,"الاجمالي عليه",null,{"$f":"SUM(D7:D24)","v":0}]
[null,null,null,null,null,null,null,null,null,null,null,"المتبقي",null,{"$f":"N1-N3","v":0}]
[null,null,null,null,null,null,null,null,null,null,null,"الاجمالي له",null,{"$f":"SUM(E7:E24)","v":0}]
[]
[]
[null,"     التاريخ","       البيان","المبلغ عليه","المبلغ له","ملاحضه1","ملاحضه2","ملاحضه3","ملاحضه4","ملاحضه5"]
[]
[]
[]
[]
[]
[]
[]
[]
[]
[]
[]
[]
[]
[]
[]
[]
[]
[null,null,"الاجمالي"]

{"sheet":"51","index":43,"n_rows":24,"n_cols":14,"rows_kept":24,"cut":false,"hidden":false,"merged":[[0,11,0,12],[0,13,0,14],[1,11,1,12],[1,13,1,14],[2,11,2,12],[2,13,2,14]]}
[null,null,null,null,null,null,null,null,null,null,null,"الاجمالي عليه",null,{"$f":"SUM(D7:D24)","v":0}]
[null,null,null,null,null,null,null,null,null,null,null,"المتبقي",null,{"$f":"N1-N3","v":0}]
[null,null,null,null,null,null,null,null,null,null,null,"الاجمالي له",null,{"$f":"SUM(E7:E24)","v":0}]
[]
[]
[null,"     التاريخ","       البيان","المبلغ عليه","المبلغ له","ملاحضه1","ملاحضه2","ملاحضه3","ملاحضه4","ملاحضه5"]
[]
[]
[]
[]
[]
[]
[]
[]
[]
[]
[]
[]
[]
[]
[]
[]
[]
[null,null,"الاجمالي"]

{"sheet":"52","index":44,"n_rows":24,"n_cols":14,"rows_kept":24,"cut":false,"hidden":false,"merged":[[0,11,0,12],[0,13,0,14],[1,11,1,12],[1,13,1,14],[2,11,2,12],[2,13,2,14]]}
[null,null,null,null,null,null,null,null,null,null,null,"الاجمالي عليه",null,{"$f":"SUM(D7:D24)","v":0}]
[null,null,null,null,null,null,null,null,null,null,null,"المتبقي",null,{"$f":"N1-N3","v":0}]
[null,null,null,null,null,null,null,null,null,null,null,"الاجمالي له",null,{"$f":"SUM(E7:E24)","v":0}]
[]
[]
[null,"     التاريخ","       البيان","المبلغ عليه","المبلغ له","ملاحضه1","ملاحضه2","ملاحضه3","ملاحضه4","ملاحضه5"]
[]
[]
[]
[]
[]
[]
[]
[]
[]
[]
[]
[]
[]
[]
[]
[]
[]
[null,null,"الاجمالي"]

{"sheet":"53","index":45,"n_rows":24,"n_cols":14,"rows_kept":24,"cut":false,"hidden":false,"merged":[[0,11,0,12],[0,13,0,14],[1,11,1,12],[1,13,1,14],[2,11,2,12],[2,13,2,14]]}
[null,null,null,null,null,null,null,null,null,null,null,"الاجمالي عليه",null,{"$f":"SUM(D7:D24)","v":0}]
[null,null,null,null,null,null,null,null,null,null,null,"المتبقي",null,{"$f":"N1-N3","v":0}]
[null,null,null,null,null,null,null,null,null,null,null,"الاجمالي له",null,{"$f":"SUM(E7:E24)","v":0}]
[]
[]
[null,"     التاريخ","       البيان","المبلغ عليه","المبلغ له","ملاحضه1","ملاحضه2","ملاحضه3","ملاحضه4","ملاحضه5"]
[]
[]
[]
[]
[]
[]
[]
[]
[]
[]
[]
[]
[]
[]
[]
[]
[]
[null,null,"الاجمالي"]

{"sheet":"54","index":46,"n_rows":24,"n_cols":14,"rows_kept":24,"cut":false,"hidden":false,"merged":[[0,11,0,12],[0,13,0,14],[1,11,1,12],[1,13,1,14],[2,11,2,12],[2,13,2,14]]}
[null,null,null,null,null,null,null,null,null,null,null,"الاجمالي عليه",null,{"$f":"SUM(D7:D24)","v":0}]
[null,null,null,null,null,null,null,null,null,null,null,"المتبقي",null,{"$f":"N1-N3","v":0}]
[null,null,null,null,null,null,null,null,null,null,null,"الاجمالي له",null,{"$f":"SUM(E7:E24)","v":0}]
[]
[]
[null,"     التاريخ","       البيان","المبلغ عليه","المبلغ له","ملاحضه1","ملاحضه2","ملاحضه3","ملاحضه4","ملاحضه5"]
[]
[]
[]
[]
[]
[]
[]
[]
[]
[]
[]
[]
[]
[]
[]
[]
[]
[null,null,"الاجمالي"]

{"sheet":"55","index":47,"n_rows":24,"n_cols":14,"rows_kept":24,"cut":false,"hidden":false,"merged":[[0,11,0,12],[0,13,0,14],[1,11,1,12],[1,13,1,14],[2,11,2,12],[2,13,2,14]]}
[null,null,null,null,null,null,null,null,null,null,null,"الاجمالي عليه",null,{"$f":"SUM(D7:D24)","v":0}]
[null,null,null,null,null,null,null,null,null,null,null,"المتبقي",null,{"$f":"N1-N3","v":0}]
[null,null,null,null,null,null,null,null,null,null,null,"الاجمالي له",null,{"$f":"SUM(E7:E24)","v":0}]
[]
[]
[null,"     التاريخ","       البيان","المبلغ عليه","المبلغ له","ملاحضه1","ملاحضه2","ملاحضه3","ملاحضه4","ملاحضه5"]
[]
[]
[]
[]
[]
[]
[]
[]
[]
[]
[]
[]
[]
[]
[]
[]
[]
[null,null,"الاجمالي"]

{"sheet":"56","index":48,"n_rows":24,"n_cols":14,"rows_kept":24,"cut":false,"hidden":false,"merged":[[0,11,0,12],[0,13,0,14],[1,11,1,12],[1,13,1,14],[2,11,2,12],[2,13,2,14]]}
[null,null,null,null,null,null,null,null,null,null,null,"الاجمالي عليه",null,{"$f":"SUM(D7:D24)","v":0}]
[null,null,null,null,null,null,null,null,null,null,null,"المتبقي",null,{"$f":"N1-N3","v":0}]
[null,null,null,null,null,null,null,null,null,null,null,"الاجمالي له",null,{"$f":"SUM(E7:E24)","v":0}]
[]
[]
[null,"     التاريخ","       البيان","المبلغ عليه","المبلغ له","ملاحضه1","ملاحضه2","ملاحضه3","ملاحضه4","ملاحضه5"]
[]
[]
[]
[]
[]
[]
[]
[]
[]
[]
[]
[]
[]
[]
[]
[]
[]
[null,null,"الاجمالي"]

{"sheet":"57","index":49,"n_rows":24,"n_cols":14,"rows_kept":24,"cut":false,"hidden":false,"merged":[[0,11,0,12],[0,13,0,14],[1,11,1,12],[1,13,1,14],[2,11,2,12],[2,13,2,14]]}
[null,null,null,null,null,null,null,null,null,null,null,"الاجمالي عليه",null,{"$f":"SUM(D7:D24)","v":0}]
[null,null,null,null,null,null,null,null,null,null,null,"المتبقي",null,{"$f":"N1-N3","v":0}]
[null,null,null,null,null,null,null,null,null,null,null,"الاجمالي له",null,{"$f":"SUM(E7:E24)","v":0}]
[]
[]
[null,"     التاريخ","       البيان","المبلغ عليه","المبلغ له","ملاحضه1","ملاحضه2","ملاحضه3","ملاحضه4","ملاحضه5"]
[]
[]
[]
[]
[]
[]
[]
[]
[]
[]
[]
[]
[]
[]
[]
[]
[]
[null,null,"الاجمالي"]

{"sheet":"58","index":50,"n_rows":24,"n_cols":14,"rows_kept":24,"cut":false,"hidden":false,"merged":[[0,11,0,12],[0,13,0,14],[1,11,1,12],[1,13,1,14],[2,11,2,12],[2,13,2,14]]}
[null,null,null,null,null,null,null,null,null,null,null,"الاجمالي عليه",null,{"$f":"SUM(D7:D24)","v":0}]
[null,null,null,null,null,null,null,null,null,null,null,"المتبقي",null,{"$f":"N1-N3","v":0}]
[null,null,null,null,null,null,null,null,null,null,null,"الاجمالي له",null,{"$f":"SUM(E7:E24)","v":0}]
[]
[]
[null,"     التاريخ","       البيان","المبلغ عليه","المبلغ له","ملاحضه1","ملاحضه2","ملاحضه3","ملاحضه4","ملاحضه5"]
[]
[]
[]
[]
[]
[]
[]
[]
[]
[]
[]
[]
[]
[]
[]
[]
[]
[null,null,"الاجمالي"]

{"sheet":"59","index":51,"n_rows":24,"n_cols":14,"rows_kept":24,"cut":false,"hidden":false,"merged":[[0,11,0,12],[0,13,0,14],[1,11,1,12],[1,13,1,14],[2,11,2,12],[2,13,2,14]]}
[null,null,null,null,null,null,null,null,null,null,null,"الاجمالي عليه",null,{"$f":"SUM(D7:D24)","v":0}]
[null,null,null,null,null,null,null,null,null,null,null,"المتبقي",null,{"$f":"N1-N3","v":0}]
[null,null,null,null,null,null,null,null,null,null,null,"الاجمالي له",null,{"$f":"SUM(E7:E24)","v":0}]
[]
[]
[null,"     التاريخ","       البيان","المبلغ عليه","المبلغ له","ملاحضه1","ملاحضه2","ملاحضه3","ملاحضه4","ملاحضه5"]
[]
[]
[]
[]
[]
[]
[]
[]
[]
[]
[]
[]
[]
[]
[]
[]
[]
[null,null,"الاجمالي"]

{"sheet":"60","index":52,"n_rows":24,"n_cols":14,"rows_kept":24,"cut":false,"hidden":false,"merged":[[0,11,0,12],[0,13,0,14],[1,11,1,12],[1,13,1,14],[2,11,2,12],[2,13,2,14]]}
[null,null,null,null,null,null,null,null,null,null,null,"الاجمالي عليه",null,{"$f":"SUM(D7:D24)","v":0}]
[null,null,null,null,null,null,null,null,null,null,null,"المتبقي",null,{"$f":"N1-N3","v":0}]
[null,null,null,null,null,null,null,null,null,null,null,"الاجمالي له",null,{"$f":"SUM(E7:E24)","v":0}]
[]
[]
[null,"     التاريخ","       البيان","المبلغ عليه","المبلغ له","ملاحضه1","ملاحضه2","ملاحضه3","ملاحضه4","ملاحضه5"]
[]
[]
[]
[]
[]
[]
[]
[]
[]
[]
[]
[]
[]
[]
[]
[]
[]
[null,null,"الاجمالي"]

{"sheet":"61","index":53,"n_rows":24,"n_cols":14,"rows_kept":24,"cut":false,"hidden":false,"merged":[[0,11,0,12],[0,13,0,14],[1,11,1,12],[1,13,1,14],[2,11,2,12],[2,13,2,14]]}
[null,null,null,null,null,null,null,null,null,null,null,"الاجمالي عليه",null,{"$f":"SUM(D7:D24)","v":0}]
[null,null,null,null,null,null,null,null,null,null,null,"المتبقي",null,{"$f":"N1-N3","v":0}]
[null,null,null,null,null,null,null,null,null,null,null,"الاجمالي له",null,{"$f":"SUM(E7:E24)","v":0}]
[]
[]
[null,"     التاريخ","       البيان","المبلغ عليه","المبلغ له","ملاحضه1","ملاحضه2","ملاحضه3","ملاحضه4","ملاحضه5"]
[]
[]
[]
[]
[]
[]
[]
[]
[]
[]
[]
[]
[]
[]
[]
[]
[]
[null,null,"الاجمالي"]

{"sheet":"62","index":54,"n_rows":24,"n_cols":14,"rows_kept":24,"cut":false,"hidden":false,"merged":[[0,11,0,12],[0,13,0,14],[1,11,1,12],[1,13,1,14],[2,11,2,12],[2,13,2,14]]}
[null,null,null,null,null,null,null,null,null,null,null,"الاجمالي عليه",null,{"$f":"SUM(D7:D24)","v":0}]
[null,null,null,null,null,null,null,null,null,null,null,"المتبقي",null,{"$f":"N1-N3","v":0}]
[null,null,null,null,null,null,null,null,null,null,null,"الاجمالي له",null,{"$f":"SUM(E7:E24)","v":0}]
[]
[]
[null,"     التاريخ","       البيان","المبلغ عليه","المبلغ له","ملاحضه1","ملاحضه2","ملاحضه3","ملاحضه4","ملاحضه5"]
[]
[]
[]
[]
[]
[]
[]
[]
[]
[]
[]
[]
[]
[]
[]
[]
[]
[null,null,"الاجمالي"]

{"sheet":"63","index":55,"n_rows":24,"n_cols":14,"rows_kept":24,"cut":false,"hidden":false,"merged":[[0,11,0,12],[0,13,0,14],[1,11,1,12],[1,13,1,14],[2,11,2,12],[2,13,2,14]]}
[null,null,null,null,null,null,null,null,null,null,null,"الاجمالي عليه",null,{"$f":"SUM(D7:D24)","v":0}]
[null,null,null,null,null,null,null,null,null,null,null,"المتبقي",null,{"$f":"N1-N3","v":0}]
[null,null,null,null,null,null,null,null,null,null,null,"الاجمالي له",null,{"$f":"SUM(E7:E24)","v":0}]
[]
[]
[null,"     التاريخ","       البيان","المبلغ عليه","المبلغ له","ملاحضه1","ملاحضه2","ملاحضه3","ملاحضه4","ملاحضه5"]
[]
[]
[]
[]
[]
[]
[]
[]
[]
[]
[]
[]
[]
[]
[]
[]
[]
[null,null,"الاجمالي"]

{"sheet":"64","index":56,"n_rows":24,"n_cols":14,"rows_kept":24,"cut":false,"hidden":false,"merged":[[0,11,0,12],[0,13,0,14],[1,11,1,12],[1,13,1,14],[2,11,2,12],[2,13,2,14]]}
[null,null,null,null,null,null,null,null,null,null,null,"الاجمالي عليه",null,{"$f":"SUM(D7:D24)","v":0}]
[null,null,null,null,null,null,null,null,null,null,null,"المتبقي",null,{"$f":"N1-N3","v":0}]
[null,null,null,null,null,null,null,null,null,null,null,"الاجمالي له",null,{"$f":"SUM(E7:E24)","v":0}]
[]
[]
[null,"     التاريخ","       البيان","المبلغ عليه","المبلغ له","ملاحضه1","ملاحضه2","ملاحضه3","ملاحضه4","ملاحضه5"]
[]
[]
[]
[]
[]
[]
[]
[]
[]
[]
[]
[]
[]
[]
[]
[]
[]
[null,null,"الاجمالي"]

{"sheet":"65","index":57,"n_rows":24,"n_cols":14,"rows_kept":24,"cut":false,"hidden":false,"merged":[[0,11,0,12],[0,13,0,14],[1,11,1,12],[1,13,1,14],[2,11,2,12],[2,13,2,14]]}
[null,null,null,null,null,null,null,null,null,null,null,"الاجمالي عليه",null,{"$f":"SUM(D7:D24)","v":0}]
[null,null,null,null,null,null,null,null,null,null,null,"المتبقي",null,{"$f":"N1-N3","v":0}]
[null,null,null,null,null,null,null,null,null,null,null,"الاجمالي له",null,{"$f":"SUM(E7:E24)","v":0}]
[]
[]
[null,"     التاريخ","       البيان","المبلغ عليه","المبلغ له","ملاحضه1","ملاحضه2","ملاحضه3","ملاحضه4","ملاحضه5"]
[]
[]
[]
[]
[]
[]
[]
[]
[]
[]
[]
[]
[]
[]
[]
[]
[]
[null,null,"الاجمالي"]

{"sheet":"66","index":58,"n_rows":24,"n_cols":14,"rows_kept":24,"cut":false,"hidden":false,"merged":[[0,11,0,12],[0,13,0,14],[1,11,1,12],[1,13,1,14],[2,11,2,12],[2,13,2,14]]}
[null,null,null,null,null,null,null,null,null,null,null,"الاجمالي عليه",null,{"$f":"SUM(D7:D24)","v":0}]
[null,null,null,null,null,null,null,null,null,null,null,"المتبقي",null,{"$f":"N1-N3","v":0}]
[null,null,null,null,null,null,null,null,null,null,null,"الاجمالي له",null,{"$f":"SUM(E7:E24)","v":0}]
[]
[]
[null,"     التاريخ","       البيان","المبلغ عليه","المبلغ له","ملاحضه1","ملاحضه2","ملاحضه3","ملاحضه4","ملاحضه5"]
[]
[]
[]
[]
[]
[]
[]
[]
[]
[]
[]
[]
[]
[]
[]
[]
[]
[null,null,"الاجمالي"]

{"sheet":"67","index":59,"n_rows":24,"n_cols":14,"rows_kept":24,"cut":false,"hidden":false,"merged":[[0,11,0,12],[0,13,0,14],[1,11,1,12],[1,13,1,14],[2,11,2,12],[2,13,2,14]]}
[null,null,null,null,null,null,null,null,null,null,null,"الاجمالي عليه",null,{"$f":"SUM(D7:D24)","v":0}]
[null,null,null,null,null,null,null,null,null,null,null,"المتبقي",null,{"$f":"N1-N3","v":0}]
[null,null,null,null,null,null,null,null,null,null,null,"الاجمالي له",null,{"$f":"SUM(E7:E24)","v":0}]
[]
[]
[null,"     التاريخ","       البيان","المبلغ عليه","المبلغ له","ملاحضه1","ملاحضه2","ملاحضه3","ملاحضه4","ملاحضه5"]
[]
[]
[]
[]
[]
[]
[]
[]
[]
[]
[]
[]
[]
[]
[]
[]
[]
[null,null,"الاجمالي"]

{"sheet":"68","index":60,"n_rows":24,"n_cols":14,"rows_kept":24,"cut":false,"hidden":false,"merged":[[0,11,0,12],[0,13,0,14],[1,11,1,12],[1,13,1,14],[2,11,2,12],[2,13,2,14]]}
[null,null,null,null,null,null,null,null,null,null,null,"الاجمالي عليه",null,{"$f":"SUM(D7:D24)","v":0}]
[null,null,null,null,null,null,null,null,null,null,null,"المتبقي",null,{"$f":"N1-N3","v":0}]
[null,null,null,null,null,null,null,null,null,null,null,"الاجمالي له",null,{"$f":"SUM(E7:E24)","v":0}]
[]
[]
[null,"     التاريخ","       البيان","المبلغ عليه","المبلغ له","ملاحضه1","ملاحضه2","ملاحضه3","ملاحضه4","ملاحضه5"]
[]
[]
[]
[]
[]
[]
[]
[]
[]
[]
[]
[]
[]
[]
[]
[]
[]
[null,null,"الاجمالي"]

{"sheet":"69","index":61,"n_rows":24,"n_cols":14,"rows_kept":24,"cut":false,"hidden":false,"merged":[[0,11,0,12],[0,13,0,14],[1,11,1,12],[1,13,1,14],[2,11,2,12],[2,13,2,14]]}
[null,null,null,null,null,null,null,null,null,null,null,"الاجمالي عليه",null,{"$f":"SUM(D7:D24)","v":0}]
[null,null,null,null,null,null,null,null,null,null,null,"المتبقي",null,{"$f":"N1-N3","v":0}]
[null,null,null,null,null,null,null,null,null,null,null,"الاجمالي له",null,{"$f":"SUM(E7:E24)","v":0}]
[]
[]
[null,"     التاريخ","       البيان","المبلغ عليه","المبلغ له","ملاحضه1","ملاحضه2","ملاحضه3","ملاحضه4","ملاحضه5"]
[]
[]
[]
[]
[]
[]
[]
[]
[]
[]
[]
[]
[]
[]
[]
[]
[]
[null,null,"الاجمالي"]

{"sheet":"70","index":62,"n_rows":24,"n_cols":14,"rows_kept":24,"cut":false,"hidden":false,"merged":[[0,11,0,12],[0,13,0,14],[1,11,1,12],[1,13,1,14],[2,11,2,12],[2,13,2,14]]}
[null,null,null,null,null,null,null,null,null,null,null,"الاجمالي عليه",null,{"$f":"SUM(D7:D24)","v":0}]
[null,null,null,null,null,null,null,null,null,null,null,"المتبقي",null,{"$f":"N1-N3","v":0}]
[null,null,null,null,null,null,null,null,null,null,null,"الاجمالي له",null,{"$f":"SUM(E7:E24)","v":0}]
[]
[]
[null,"     التاريخ","       البيان","المبلغ عليه","المبلغ له","ملاحضه1","ملاحضه2","ملاحضه3","ملاحضه4","ملاحضه5"]
[]
[]
[]
[]
[]
[]
[]
[]
[]
[]
[]
[]
[]
[]
[]
[]
[]
[null,null,"الاجمالي"]

{"sheet":"71","index":63,"n_rows":24,"n_cols":14,"rows_kept":24,"cut":false,"hidden":false,"merged":[[0,11,0,12],[0,13,0,14],[1,11,1,12],[1,13,1,14],[2,11,2,12],[2,13,2,14]]}
[null,null,null,null,null,null,null,null,null,null,null,"الاجمالي عليه",null,{"$f":"SUM(D7:D24)","v":0}]
[null,null,null,null,null,null,null,null,null,null,null,"المتبقي",null,{"$f":"N1-N3","v":0}]
[null,null,null,null,null,null,null,null,null,null,null,"الاجمالي له",null,{"$f":"SUM(E7:E24)","v":0}]
[]
[]
[null,"     التاريخ","       البيان","المبلغ عليه","المبلغ له","ملاحضه1","ملاحضه2","ملاحضه3","ملاحضه4","ملاحضه5"]
[]
[]
[]
[]
[]
[]
[]
[]
[]
[]
[]
[]
[]
[]
[]
[]
[]
[null,null,"الاجمالي"]

{"sheet":"72","index":64,"n_rows":24,"n_cols":14,"rows_kept":24,"cut":false,"hidden":false,"merged":[[0,11,0,12],[0,13,0,14],[1,11,1,12],[1,13,1,14],[2,11,2,12],[2,13,2,14]]}
[null,null,null,null,null,null,null,null,null,null,null,"الاجمالي عليه",null,{"$f":"SUM(D7:D24)","v":0}]
[null,null,null,null,null,null,null,null,null,null,null,"المتبقي",null,{"$f":"N1-N3","v":0}]
[null,null,null,null,null,null,null,null,null,null,null,"الاجمالي له",null,{"$f":"SUM(E7:E24)","v":0}]
[]
[]
[null,"     التاريخ","       البيان","المبلغ عليه","المبلغ له","ملاحضه1","ملاحضه2","ملاحضه3","ملاحضه4","ملاحضه5"]
[]
[]
[]
[]
[]
[]
[]
[]
[]
[]
[]
[]
[]
[]
[]
[]
[]
[null,null,"الاجمالي"]

{"sheet":"73","index":65,"n_rows":24,"n_cols":14,"rows_kept":24,"cut":false,"hidden":false,"merged":[[0,11,0,12],[0,13,0,14],[1,11,1,12],[1,13,1,14],[2,11,2,12],[2,13,2,14]]}
[null,null,null,null,null,null,null,null,null,null,null,"الاجمالي عليه",null,{"$f":"SUM(D7:D24)","v":0}]
[null,null,null,null,null,null,null,null,null,null,null,"المتبقي",null,{"$f":"N1-N3","v":0}]
[null,null,null,null,null,null,null,null,null,null,null,"الاجمالي له",null,{"$f":"SUM(E7:E24)","v":0}]
[]
[]
[null,"     التاريخ","       البيان","المبلغ عليه","المبلغ له","ملاحضه1","ملاحضه2","ملاحضه3","ملاحضه4","ملاحضه5"]
[]
[]
[]
[]
[]
[]
[]
[]
[]
[]
[]
[]
[]
[]
[]
[]
[]
[null,null,"الاجمالي"]

{"sheet":"74","index":66,"n_rows":24,"n_cols":14,"rows_kept":24,"cut":false,"hidden":false,"merged":[[0,11,0,12],[0,13,0,14],[1,11,1,12],[1,13,1,14],[2,11,2,12],[2,13,2,14]]}
[null,null,null,null,null,null,null,null,null,null,null,"الاجمالي عليه",null,{"$f":"SUM(D7:D24)","v":0}]
[null,null,null,null,null,null,null,null,null,null,null,"المتبقي",null,{"$f":"N1-N3","v":0}]
[null,null,null,null,null,null,null,null,null,null,null,"الاجمالي له",null,{"$f":"SUM(E7:E24)","v":0}]
[]
[]
[null,"     التاريخ","       البيان","المبلغ عليه","المبلغ له","ملاحضه1","ملاحضه2","ملاحضه3","ملاحضه4","ملاحضه5"]
[]
[]
[]
[]
[]
[]
[]
[]
[]
[]
[]
[]
[]
[]
[]
[]
[]
[null,null,"الاجمالي"]

{"sheet":"75","index":67,"n_rows":24,"n_cols":14,"rows_kept":24,"cut":false,"hidden":false,"merged":[[0,11,0,12],[0,13,0,14],[1,11,1,12],[1,13,1,14],[2,11,2,12],[2,13,2,14]]}
[null,null,null,null,null,null,null,null,null,null,null,"الاجمالي عليه",null,{"$f":"SUM(D7:D24)","v":0}]
[null,null,null,null,null,null,null,null,null,null,null,"المتبقي",null,{"$f":"N1-N3","v":0}]
[null,null,null,null,null,null,null,null,null,null,null,"الاجمالي له",null,{"$f":"SUM(E7:E24)","v":0}]
[]
[]
[null,"     التاريخ","       البيان","المبلغ عليه","المبلغ له","ملاحضه1","ملاحضه2","ملاحضه3","ملاحضه4","ملاحضه5"]
[]
[]
[]
[]
[]
[]
[]
[]
[]
[]
[]
[]
[]
[]
[]
[]
[]
[null,null,"الاجمالي"]

{"sheet":"76","index":68,"n_rows":24,"n_cols":14,"rows_kept":24,"cut":false,"hidden":false,"merged":[[0,11,0,12],[0,13,0,14],[1,11,1,12],[1,13,1,14],[2,11,2,12],[2,13,2,14]]}
[null,null,null,null,null,null,null,null,null,null,null,"الاجمالي عليه",null,{"$f":"SUM(D7:D24)","v":0}]
[null,null,null,null,null,null,null,null,null,null,null,"المتبقي",null,{"$f":"N1-N3","v":0}]
[null,null,null,null,null,null,null,null,null,null,null,"الاجمالي له",null,{"$f":"SUM(E7:E24)","v":0}]
[]
[]
[null,"     التاريخ","       البيان","المبلغ عليه","المبلغ له","ملاحضه1","ملاحضه2","ملاحضه3","ملاحضه4","ملاحضه5"]
[]
[]
[]
[]
[]
[]
[]
[]
[]
[]
[]
[]
[]
[]
[]
[]
[]
[null,null,"الاجمالي"]

{"sheet":"77","index":69,"n_rows":24,"n_cols":14,"rows_kept":24,"cut":false,"hidden":false,"merged":[[0,11,0,12],[0,13,0,14],[1,11,1,12],[1,13,1,14],[2,11,2,12],[2,13,2,14]]}
[null,null,null,null,null,null,null,null,null,null,null,"الاجمالي عليه",null,{"$f":"SUM(D7:D24)","v":0}]
[null,null,null,null,null,null,null,null,null,null,null,"المتبقي",null,{"$f":"N1-N3","v":0}]
[null,null,null,null,null,null,null,null,null,null,null,"الاجمالي له",null,{"$f":"SUM(E7:E24)","v":0}]
[]
[]
[null,"     التاريخ","       البيان","المبلغ عليه","المبلغ له","ملاحضه1","ملاحضه2","ملاحضه3","ملاحضه4","ملاحضه5"]
[]
[]
[]
[]
[]
[]
[]
[]
[]
[]
[]
[]
[]
[]
[]
[]
[]
[null,null,"الاجمالي"]

{"sheet":"78","index":70,"n_rows":24,"n_cols":14,"rows_kept":24,"cut":false,"hidden":false,"merged":[[0,11,0,12],[0,13,0,14],[1,11,1,12],[1,13,1,14],[2,11,2,12],[2,13,2,14]]}
[null,null,null,null,null,null,null,null,null,null,null,"الاجمالي عليه",null,{"$f":"SUM(D7:D24)","v":0}]
[null,null,null,null,null,null,null,null,null,null,null,"المتبقي",null,{"$f":"N1-N3","v":0}]
[null,null,null,null,null,null,null,null,null,null,null,"الاجمالي له",null,{"$f":"SUM(E7:E24)","v":0}]
[]
[]
[null,"     التاريخ","       البيان","المبلغ عليه","المبلغ له","ملاحضه1","ملاحضه2","ملاحضه3","ملاحضه4","ملاحضه5"]
[]
[]
[]
[]
[]
[]
[]
[]
[]
[]
[]
[]
[]
[]
[]
[]
[]
[null,null,"الاجمالي"]

{"sheet":"79","index":71,"n_rows":24,"n_cols":14,"rows_kept":24,"cut":false,"hidden":false,"merged":[[0,11,0,12],[0,13,0,14],[1,11,1,12],[1,13,1,14],[2,11,2,12],[2,13,2,14]]}
[null,null,null,null,null,null,null,null,null,null,null,"الاجمالي عليه",null,{"$f":"SUM(D7:D24)","v":0}]
[null,null,null,null,null,null,null,null,null,null,null,"المتبقي",null,{"$f":"N1-N3","v":0}]
[null,null,null,null,null,null,null,null,null,null,null,"الاجمالي له",null,{"$f":"SUM(E7:E24)","v":0}]
[]
[]
[null,"     التاريخ","       البيان","المبلغ عليه","المبلغ له","ملاحضه1","ملاحضه2","ملاحضه3","ملاحضه4","ملاحضه5"]
[]
[]
[]
[]
[]
[]
[]
[]
[]
[]
[]
[]
[]
[]
[]
[]
[]
[null,null,"الاجمالي"]

{"sheet":"80","index":72,"n_rows":24,"n_cols":14,"rows_kept":24,"cut":false,"hidden":false,"merged":[[0,11,0,12],[0,13,0,14],[1,11,1,12],[1,13,1,14],[2,11,2,12],[2,13,2,14]]}
[null,null,null,null,null,null,null,null,null,null,null,"الاجمالي عليه",null,{"$f":"SUM(D7:D24)","v":0}]
[null,null,null,null,null,null,null,null,null,null,null,"المتبقي",null,{"$f":"N1-N3","v":0}]
[null,null,null,null,null,null,null,null,null,null,null,"الاجمالي له",null,{"$f":"SUM(E7:E24)","v":0}]
[]
[]
[null,"     التاريخ","       البيان","المبلغ عليه","المبلغ له","ملاحضه1","ملاحضه2","ملاحضه3","ملاحضه4","ملاحضه5"]
[]
[]
[]
[]
[]
[]
[]
[]
[]
[]
[]
[]
[]
[]
[]
[]
[]
[null,null,"الاجمالي"]

{"sheet":"81","index":73,"n_rows":24,"n_cols":14,"rows_kept":24,"cut":false,"hidden":false,"merged":[[0,11,0,12],[0,13,0,14],[1,11,1,12],[1,13,1,14],[2,11,2,12],[2,13,2,14]]}
[null,null,null,null,null,null,null,null,null,null,null,"الاجمالي عليه",null,{"$f":"SUM(D7:D24)","v":0}]
[null,null,null,null,null,null,null,null,null,null,null,"المتبقي",null,{"$f":"N1-N3","v":0}]
[null,null,null,null,null,null,null,null,null,null,null,"الاجمالي له",null,{"$f":"SUM(E7:E24)","v":0}]
[]
[]
[null,"     التاريخ","       البيان","المبلغ عليه","المبلغ له","ملاحضه1","ملاحضه2","ملاحضه3","ملاحضه4","ملاحضه5"]
[]
[]
[]
[]
[]
[]
[]
[]
[]
[]
[]
[]
[]
[]
[]
[]
[]
[null,null,"الاجمالي"]

{"sheet":"82","index":74,"n_rows":24,"n_cols":14,"rows_kept":24,"cut":false,"hidden":false,"merged":[[0,11,0,12],[0,13,0,14],[1,11,1,12],[1,13,1,14],[2,11,2,12],[2,13,2,14]]}
[null,null,null,null,null,null,null,null,null,null,null,"الاجمالي عليه",null,{"$f":"SUM(D7:D24)","v":0}]
[null,null,null,null,null,null,null,null,null,null,null,"المتبقي",null,{"$f":"N1-N3","v":0}]
[null,null,null,null,null,null,null,null,null,null,null,"الاجمالي له",null,{"$f":"SUM(E7:E24)","v":0}]
[]
[]
[null,"     التاريخ","       البيان","المبلغ عليه","المبلغ له","ملاحضه1","ملاحضه2","ملاحضه3","ملاحضه4","ملاحضه5"]
[]
[]
[]
[]
[]
[]
[]
[]
[]
[]
[]
[]
[]
[]
[]
[]
[]
[null,null,"الاجمالي"]

{"sheet":"83","index":75,"n_rows":24,"n_cols":14,"rows_kept":24,"cut":false,"hidden":false,"merged":[[0,11,0,12],[0,13,0,14],[1,11,1,12],[1,13,1,14],[2,11,2,12],[2,13,2,14]]}
[null,null,null,null,null,null,null,null,null,null,null,"الاجمالي عليه",null,{"$f":"SUM(D7:D24)","v":0}]
[null,null,null,null,null,null,null,null,null,null,null,"المتبقي",null,{"$f":"N1-N3","v":0}]
[null,null,null,null,null,null,null,null,null,null,null,"الاجمالي له",null,{"$f":"SUM(E7:E24)","v":0}]
[]
[]
[null,"     التاريخ","       البيان","المبلغ عليه","المبلغ له","ملاحضه1","ملاحضه2","ملاحضه3","ملاحضه4","ملاحضه5"]
[]
[]
[]
[]
[]
[]
[]
[]
[]
[]
[]
[]
[]
[]
[]
[]
[]
[null,null,"الاجمالي"]

{"sheet":"84","index":76,"n_rows":24,"n_cols":14,"rows_kept":24,"cut":false,"hidden":false,"merged":[[0,11,0,12],[0,13,0,14],[1,11,1,12],[1,13,1,14],[2,11,2,12],[2,13,2,14]]}
[null,null,null,null,null,null,null,null,null,null,null,"الاجمالي عليه",null,{"$f":"SUM(D7:D24)","v":0}]
[null,null,null,null,null,null,null,null,null,null,null,"المتبقي",null,{"$f":"N1-N3","v":0}]
[null,null,null,null,null,null,null,null,null,null,null,"الاجمالي له",null,{"$f":"SUM(E7:E24)","v":0}]
[]
[]
[null,"     التاريخ","       البيان","المبلغ عليه","المبلغ له","ملاحضه1","ملاحضه2","ملاحضه3","ملاحضه4","ملاحضه5"]
[]
[]
[]
[]
[]
[]
[]
[]
[]
[]
[]
[]
[]
[]
[]
[]
[]
[null,null,"الاجمالي"]

{"sheet":"85","index":77,"n_rows":24,"n_cols":14,"rows_kept":24,"cut":false,"hidden":false,"merged":[[0,11,0,12],[0,13,0,14],[1,11,1,12],[1,13,1,14],[2,11,2,12],[2,13,2,14]]}
[null,null,null,null,null,null,null,null,null,null,null,"الاجمالي عليه",null,{"$f":"SUM(D7:D24)","v":0}]
[null,null,null,null,null,null,null,null,null,null,null,"المتبقي",null,{"$f":"N1-N3","v":0}]
[null,null,null,null,null,null,null,null,null,null,null,"الاجمالي له",null,{"$f":"SUM(E7:E24)","v":0}]
[]
[]
[null,"     التاريخ","       البيان","المبلغ عليه","المبلغ له","ملاحضه1","ملاحضه2","ملاحضه3","ملاحضه4","ملاحضه5"]
[]
[]
[]
[]
[]
[]
[]
[]
[]
[]
[]
[]
[]
[]
[]
[]
[]
[null,null,"الاجمالي"]

{"sheet":"86","index":78,"n_rows":24,"n_cols":14,"rows_kept":24,"cut":false,"hidden":false,"merged":[[0,11,0,12],[0,13,0,14],[1,11,1,12],[1,13,1,14],[2,11,2,12],[2,13,2,14]]}
[null,null,null,null,null,null,null,null,null,null,null,"الاجمالي عليه",null,{"$f":"SUM(D7:D24)","v":0}]
[null,null,null,null,null,null,null,null,null,null,null,"المتبقي",null,{"$f":"N1-N3","v":0}]
[null,null,null,null,null,null,null,null,null,null,null,"الاجمالي له",null,{"$f":"SUM(E7:E24)","v":0}]
[]
[]
[null,"     التاريخ","       البيان","المبلغ عليه","المبلغ له","ملاحضه1","ملاحضه2","ملاحضه3","ملاحضه4","ملاحضه5"]
[]
[]
[]
[]
[]
[]
[]
[]
[]
[]
[]
[]
[]
[]
[]
[]
[]
[null,null,"الاجمالي"]

{"sheet":"87","index":79,"n_rows":24,"n_cols":14,"rows_kept":24,"cut":false,"hidden":false,"merged":[[0,11,0,12],[0,13,0,14],[1,11,1,12],[1,13,1,14],[2,11,2,12],[2,13,2,14]]}
[null,null,null,null,null,null,null,null,null,null,null,"الاجمالي عليه",null,{"$f":"SUM(D7:D24)","v":0}]
[null,null,null,null,null,null,null,null,null,null,null,"المتبقي",null,{"$f":"N1-N3","v":0}]
[null,null,null,null,null,null,null,null,null,null,null,"الاجمالي له",null,{"$f":"SUM(E7:E24)","v":0}]
[]
[]
[null,"     التاريخ","       البيان","المبلغ عليه","المبلغ له","ملاحضه1","ملاحضه2","ملاحضه3","ملاحضه4","ملاحضه5"]
[]
[]
[]
[]
[]
[]
[]
[]
[]
[]
[]
[]
[]
[]
[]
[]
[]
[null,null,"الاجمالي"]

{"sheet":"88","index":80,"n_rows":24,"n_cols":14,"rows_kept":24,"cut":false,"hidden":false,"merged":[[0,11,0,12],[0,13,0,14],[1,11,1,12],[1,13,1,14],[2,11,2,12],[2,13,2,14]]}
[null,null,null,null,null,null,null,null,null,null,null,"الاجمالي عليه",null,{"$f":"SUM(D7:D24)","v":0}]
[null,null,null,null,null,null,null,null,null,null,null,"المتبقي",null,{"$f":"N1-N3","v":0}]
[null,null,null,null,null,null,null,null,null,null,null,"الاجمالي له",null,{"$f":"SUM(E7:E24)","v":0}]
[]
[]
[null,"     التاريخ","       البيان","المبلغ عليه","المبلغ له","ملاحضه1","ملاحضه2","ملاحضه3","ملاحضه4","ملاحضه5"]
[]
[]
[]
[]
[]
[]
[]
[]
[]
[]
[]
[]
[]
[]
[]
[]
[]
[null,null,"الاجمالي"]

{"sheet":"89","index":81,"n_rows":24,"n_cols":14,"rows_kept":24,"cut":false,"hidden":false,"merged":[[0,11,0,12],[0,13,0,14],[1,11,1,12],[1,13,1,14],[2,11,2,12],[2,13,2,14]]}
[null,null,null,null,null,null,null,null,null,null,null,"الاجمالي عليه",null,{"$f":"SUM(D7:D24)","v":0}]
[null,null,null,null,null,null,null,null,null,null,null,"المتبقي",null,{"$f":"N1-N3","v":0}]
[null,null,null,null,null,null,null,null,null,null,null,"الاجمالي له",null,{"$f":"SUM(E7:E24)","v":0}]
[]
[]
[null,"     التاريخ","       البيان","المبلغ عليه","المبلغ له","ملاحضه1","ملاحضه2","ملاحضه3","ملاحضه4","ملاحضه5"]
[]
[]
[]
[]
[]
[]
[]
[]
[]
[]
[]
[]
[]
[]
[]
[]
[]
[null,null,"الاجمالي"]

{"sheet":"90","index":82,"n_rows":24,"n_cols":14,"rows_kept":24,"cut":false,"hidden":false,"merged":[[0,11,0,12],[0,13,0,14],[1,11,1,12],[1,13,1,14],[2,11,2,12],[2,13,2,14]]}
[null,null,null,null,null,null,null,null,null,null,null,"الاجمالي عليه",null,{"$f":"SUM(D7:D24)","v":0}]
[null,null,null,null,null,null,null,null,null,null,null,"المتبقي",null,{"$f":"N1-N3","v":0}]
[null,null,null,null,null,null,null,null,null,null,null,"الاجمالي له",null,{"$f":"SUM(E7:E24)","v":0}]
[]
[]
[null,"     التاريخ","       البيان","المبلغ عليه","المبلغ له","ملاحضه1","ملاحضه2","ملاحضه3","ملاحضه4","ملاحضه5"]
[]
[]
[]
[]
[]
[]
[]
[]
[]
[]
[]
[]
[]
[]
[]
[]
[]
[null,null,"الاجمالي"]

{"sheet":"91","index":83,"n_rows":24,"n_cols":14,"rows_kept":24,"cut":false,"hidden":false,"merged":[[0,11,0,12],[0,13,0,14],[1,11,1,12],[1,13,1,14],[2,11,2,12],[2,13,2,14]]}
[null,null,null,null,null,null,null,null,null,null,null,"الاجمالي عليه",null,{"$f":"SUM(D7:D24)","v":0}]
[null,null,null,null,null,null,null,null,null,null,null,"المتبقي",null,{"$f":"N1-N3","v":0}]
[null,null,null,null,null,null,null,null,null,null,null,"الاجمالي له",null,{"$f":"SUM(E7:E24)","v":0}]
[]
[]
[null,"     التاريخ","       البيان","المبلغ عليه","المبلغ له","ملاحضه1","ملاحضه2","ملاحضه3","ملاحضه4","ملاحضه5"]
[]
[]
[]
[]
[]
[]
[]
[]
[]
[]
[]
[]
[]
[]
[]
[]
[]
[null,null,"الاجمالي"]

{"sheet":"92","index":84,"n_rows":24,"n_cols":14,"rows_kept":24,"cut":false,"hidden":false,"merged":[[0,11,0,12],[0,13,0,14],[1,11,1,12],[1,13,1,14],[2,11,2,12],[2,13,2,14]]}
[null,null,null,null,null,null,null,null,null,null,null,"الاجمالي عليه",null,{"$f":"SUM(D7:D24)","v":0}]
[null,null,null,null,null,null,null,null,null,null,null,"المتبقي",null,{"$f":"N1-N3","v":0}]
[null,null,null,null,null,null,null,null,null,null,null,"الاجمالي له",null,{"$f":"SUM(E7:E24)","v":0}]
[]
[]
[null,"     التاريخ","       البيان","المبلغ عليه","المبلغ له","ملاحضه1","ملاحضه2","ملاحضه3","ملاحضه4","ملاحضه5"]
[]
[]
[]
[]
[]
[]
[]
[]
[]
[]
[]
[]
[]
[]
[]
[]
[]
[null,null,"الاجمالي"]

{"sheet":"93","index":85,"n_rows":24,"n_cols":14,"rows_kept":24,"cut":false,"hidden":false,"merged":[[0,11,0,12],[0,13,0,14],[1,11,1,12],[1,13,1,14],[2,11,2,12],[2,13,2,14]]}
[null,null,null,null,null,null,null,null,null,null,null,"الاجمالي عليه",null,{"$f":"SUM(D7:D24)","v":0}]
[null,null,null,null,null,null,null,null,null,null,null,"المتبقي",null,{"$f":"N1-N3","v":0}]
[null,null,null,null,null,null,null,null,null,null,null,"الاجمالي له",null,{"$f":"SUM(E7:E24)","v":0}]
[]
[]
[null,"     التاريخ","       البيان","المبلغ عليه","المبلغ له","ملاحضه1","ملاحضه2","ملاحضه3","ملاحضه4","ملاحضه5"]
[]
[]
[]
[]
[]
[]
[]
[]
[]
[]
[]
[]
[]
[]
[]
[]
[]
[null,null,"الاجمالي"]

{"sheet":"94","index":86,"n_rows":24,"n_cols":14,"rows_kept":24,"cut":false,"hidden":false,"merged":[[0,11,0,12],[0,13,0,14],[1,11,1,12],[1,13,1,14],[2,11,2,12],[2,13,2,14]]}
[null,null,null,null,null,null,null,null,null,null,null,"الاجمالي عليه",null,{"$f":"SUM(D7:D24)","v":0}]
[null,null,null,null,null,null,null,null,null,null,null,"المتبقي",null,{"$f":"N1-N3","v":0}]
[null,null,null,null,null,null,null,null,null,null,null,"الاجمالي له",null,{"$f":"SUM(E7:E24)","v":0}]
[]
[]
[null,"     التاريخ","       البيان","المبلغ عليه","المبلغ له","ملاحضه1","ملاحضه2","ملاحضه3","ملاحضه4","ملاحضه5"]
[]
[]
[]
[]
[]
[]
[]
[]
[]
[]
[]
[]
[]
[]
[]
[]
[]
[null,null,"الاجمالي"]

{"sheet":"95","index":87,"n_rows":24,"n_cols":14,"rows_kept":24,"cut":false,"hidden":false,"merged":[[0,11,0,12],[0,13,0,14],[1,11,1,12],[1,13,1,14],[2,11,2,12],[2,13,2,14]]}
[null,null,null,null,null,null,null,null,null,null,null,"الاجمالي عليه",null,{"$f":"SUM(D7:D24)","v":0}]
[null,null,null,null,null,null,null,null,null,null,null,"المتبقي",null,{"$f":"N1-N3","v":0}]
[null,null,null,null,null,null,null,null,null,null,null,"الاجمالي له",null,{"$f":"SUM(E7:E24)","v":0}]
[]
[]
[null,"     التاريخ","       البيان","المبلغ عليه","المبلغ له","ملاحضه1","ملاحضه2","ملاحضه3","ملاحضه4","ملاحضه5"]
[]
[]
[]
[]
[]
[]
[]
[]
[]
[]
[]
[]
[]
[]
[]
[]
[]
[null,null,"الاجمالي"]

{"sheet":"96","index":88,"n_rows":24,"n_cols":14,"rows_kept":24,"cut":false,"hidden":false,"merged":[[0,11,0,12],[0,13,0,14],[1,11,1,12],[1,13,1,14],[2,11,2,12],[2,13,2,14]]}
[null,null,null,null,null,null,null,null,null,null,null,"الاجمالي عليه",null,{"$f":"SUM(D7:D24)","v":0}]
[null,null,null,null,null,null,null,null,null,null,null,"المتبقي",null,{"$f":"N1-N3","v":0}]
[null,null,null,null,null,null,null,null,null,null,null,"الاجمالي له",null,{"$f":"SUM(E7:E24)","v":0}]
[]
[]
[null,"     التاريخ","       البيان","المبلغ عليه","المبلغ له","ملاحضه1","ملاحضه2","ملاحضه3","ملاحضه4","ملاحضه5"]
[]
[]
[]
[]
[]
[]
[]
[]
[]
[]
[]
[]
[]
[]
[]
[]
[]
[null,null,"الاجمالي"]

{"sheet":"97","index":89,"n_rows":24,"n_cols":14,"rows_kept":24,"cut":false,"hidden":false,"merged":[[0,11,0,12],[0,13,0,14],[1,11,1,12],[1,13,1,14],[2,11,2,12],[2,13,2,14]]}
[null,null,null,null,null,null,null,null,null,null,null,"الاجمالي عليه",null,{"$f":"SUM(D7:D24)","v":0}]
[null,null,null,null,null,null,null,null,null,null,null,"المتبقي",null,{"$f":"N1-N3","v":0}]
[null,null,null,null,null,null,null,null,null,null,null,"الاجمالي له",null,{"$f":"SUM(E7:E24)","v":0}]
[]
[]
[null,"     التاريخ","       البيان","المبلغ عليه","المبلغ له","ملاحضه1","ملاحضه2","ملاحضه3","ملاحضه4","ملاحضه5"]
[]
[]
[]
[]
[]
[]
[]
[]
[]
[]
[]
[]
[]
[]
[]
[]
[]
[null,null,"الاجمالي"]

{"sheet":"98","index":90,"n_rows":24,"n_cols":14,"rows_kept":24,"cut":false,"hidden":false,"merged":[[0,11,0,12],[0,13,0,14],[1,11,1,12],[1,13,1,14],[2,11,2,12],[2,13,2,14]]}
[null,null,null,null,null,null,null,null,null,null,null,"الاجمالي عليه",null,{"$f":"SUM(D7:D24)","v":0}]
[null,null,null,null,null,null,null,null,null,null,null,"المتبقي",null,{"$f":"N1-N3","v":0}]
[null,null,null,null,null,null,null,null,null,null,null,"الاجمالي له",null,{"$f":"SUM(E7:E24)","v":0}]
[]
[]
[null,"     التاريخ","       البيان","المبلغ عليه","المبلغ له","ملاحضه1","ملاحضه2","ملاحضه3","ملاحضه4","ملاحضه5"]
[]
[]
[]
[]
[]
[]
[]
[]
[]
[]
[]
[]
[]
[]
[]
[]
[]
[null,null,"الاجمالي"]

{"sheet":"99","index":91,"n_rows":24,"n_cols":14,"rows_kept":24,"cut":false,"hidden":false,"merged":[[0,11,0,12],[0,13,0,14],[1,11,1,12],[1,13,1,14],[2,11,2,12],[2,13,2,14]]}
[null,null,null,null,null,null,null,null,null,null,null,"الاجمالي عليه",null,{"$f":"SUM(D7:D24)","v":0}]
[null,null,null,null,null,null,null,null,null,null,null,"المتبقي",null,{"$f":"N1-N3","v":0}]
[null,null,null,null,null,null,null,null,null,null,null,"الاجمالي له",null,{"$f":"SUM(E7:E24)","v":0}]
[]
[]
[null,"     التاريخ","       البيان","المبلغ عليه","المبلغ له","ملاحضه1","ملاحضه2","ملاحضه3","ملاحضه4","ملاحضه5"]
[]
[]
[]
[]
[]
[]
[]
[]
[]
[]
[]
[]
[]
[]
[]
[]
[]
[null,null,"الاجمالي"]

{"sheet":"100","index":92,"n_rows":24,"n_cols":14,"rows_kept":24,"cut":false,"hidden":false,"merged":[[0,11,0,12],[0,13,0,14],[1,11,1,12],[1,13,1,14],[2,11,2,12],[2,13,2,14]]}
[null,null,null,null,null,null,null,null,null,null,null,"الاجمالي عليه",null,{"$f":"SUM(D7:D24)","v":0}]
[null,null,null,null,null,null,null,null,null,null,null,"المتبقي",null,{"$f":"N1-N3","v":0}]
[null,null,null,null,null,null,null,null,null,null,null,"الاجمالي له",null,{"$f":"SUM(E7:E24)","v":0}]
[]
[]
[null,"     التاريخ","       البيان","المبلغ عليه","المبلغ له","ملاحضه1","ملاحضه2","ملاحضه3","ملاحضه4","ملاحضه5"]
[]
[]
[]
[]
[]
[]
[]
[]
[]
[]
[]
[]
[]
[]
[]
[]
[]
[null,null,"الاجمالي"]

{"sheet":"101","index":93,"n_rows":24,"n_cols":14,"rows_kept":24,"cut":false,"hidden":false,"merged":[[0,11,0,12],[0,13,0,14],[1,11,1,12],[1,13,1,14],[2,11,2,12],[2,13,2,14]]}
[null,null,null,null,null,null,null,null,null,null,null,"الاجمالي عليه",null,{"$f":"SUM(D7:D24)","v":0}]
[null,null,null,null,null,null,null,null,null,null,null,"المتبقي",null,{"$f":"N1-N3","v":0}]
[null,null,null,null,null,null,null,null,null,null,null,"الاجمالي له",null,{"$f":"SUM(E7:E24)","v":0}]
[]
[]
[null,"     التاريخ","       البيان","المبلغ عليه","المبلغ له","ملاحضه1","ملاحضه2","ملاحضه3","ملاحضه4","ملاحضه5"]
[]
[]
[]
[]
[]
[]
[]
[]
[]
[]
[]
[]
[]
[]
[]
[]
[]
[null,null,"الاجمالي"]

{"sheet":"102","index":94,"n_rows":24,"n_cols":14,"rows_kept":24,"cut":false,"hidden":false,"merged":[[0,11,0,12],[0,13,0,14],[1,11,1,12],[1,13,1,14],[2,11,2,12],[2,13,2,14]]}
[null,null,null,null,null,null,null,null,null,null,null,"الاجمالي عليه",null,{"$f":"SUM(D7:D24)","v":0}]
[null,null,null,null,null,null,null,null,null,null,null,"المتبقي",null,{"$f":"N1-N3","v":0}]
[null,null,null,null,null,null,null,null,null,null,null,"الاجمالي له",null,{"$f":"SUM(E7:E24)","v":0}]
[]
[]
[null,"     التاريخ","       البيان","المبلغ عليه","المبلغ له","ملاحضه1","ملاحضه2","ملاحضه3","ملاحضه4","ملاحضه5"]
[]
[]
[]
[]
[]
[]
[]
[]
[]
[]
[]
[]
[]
[]
[]
[]
[]
[null,null,"الاجمالي"]

{"sheet":"103","index":95,"n_rows":24,"n_cols":14,"rows_kept":24,"cut":false,"hidden":false,"merged":[[0,11,0,12],[0,13,0,14],[1,11,1,12],[1,13,1,14],[2,11,2,12],[2,13,2,14]]}
[null,null,null,null,null,null,null,null,null,null,null,"الاجمالي عليه",null,{"$f":"SUM(D7:D24)","v":0}]
[null,null,null,null,null,null,null,null,null,null,null,"المتبقي",null,{"$f":"N1-N3","v":0}]
[null,null,null,null,null,null,null,null,null,null,null,"الاجمالي له",null,{"$f":"SUM(E7:E24)","v":0}]
[]
[]
[null,"     التاريخ","       البيان","المبلغ عليه","المبلغ له","ملاحضه1","ملاحضه2","ملاحضه3","ملاحضه4","ملاحضه5"]
[]
[]
[]
[]
[]
[]
[]
[]
[]
[]
[]
[]
[]
[]
[]
[]
[]
[null,null,"الاجمالي"]

{"sheet":"104","index":96,"n_rows":24,"n_cols":14,"rows_kept":24,"cut":false,"hidden":false,"merged":[[0,11,0,12],[0,13,0,14],[1,11,1,12],[1,13,1,14],[2,11,2,12],[2,13,2,14]]}
[null,null,null,null,null,null,null,null,null,null,null,"الاجمالي عليه",null,{"$f":"SUM(D7:D24)","v":0}]
[null,null,null,null,null,null,null,null,null,null,null,"المتبقي",null,{"$f":"N1-N3","v":0}]
[null,null,null,null,null,null,null,null,null,null,null,"الاجمالي له",null,{"$f":"SUM(E7:E24)","v":0}]
[]
[]
[null,"     التاريخ","       البيان","المبلغ عليه","المبلغ له","ملاحضه1","ملاحضه2","ملاحضه3","ملاحضه4","ملاحضه5"]
[]
[]
[]
[]
[]
[]
[]
[]
[]
[]
[]
[]
[]
[]
[]
[]
[]
[null,null,"الاجمالي"]

{"sheet":"105","index":97,"n_rows":24,"n_cols":14,"rows_kept":24,"cut":false,"hidden":false,"merged":[[0,11,0,12],[0,13,0,14],[1,11,1,12],[1,13,1,14],[2,11,2,12],[2,13,2,14]]}
[null,null,null,null,null,null,null,null,null,null,null,"الاجمالي عليه",null,{"$f":"SUM(D7:D24)","v":0}]
[null,null,null,null,null,null,null,null,null,null,null,"المتبقي",null,{"$f":"N1-N3","v":0}]
[null,null,null,null,null,null,null,null,null,null,null,"الاجمالي له",null,{"$f":"SUM(E7:E24)","v":0}]
[]
[]
[null,"     التاريخ","       البيان","المبلغ عليه","المبلغ له","ملاحضه1","ملاحضه2","ملاحضه3","ملاحضه4","ملاحضه5"]
[]
[]
[]
[]
[]
[]
[]
[]
[]
[]
[]
[]
[]
[]
[]
[]
[]
[null,null,"الاجمالي"]

{"sheet":"106","index":98,"n_rows":24,"n_cols":14,"rows_kept":24,"cut":false,"hidden":false,"merged":[[0,11,0,12],[0,13,0,14],[1,11,1,12],[1,13,1,14],[2,11,2,12],[2,13,2,14]]}
[null,null,null,null,null,null,null,null,null,null,null,"الاجمالي عليه",null,{"$f":"SUM(D7:D24)","v":0}]
[null,null,null,null,null,null,null,null,null,null,null,"المتبقي",null,{"$f":"N1-N3","v":0}]
[null,null,null,null,null,null,null,null,null,null,null,"الاجمالي له",null,{"$f":"SUM(E7:E24)","v":0}]
[]
[]
[null,"     التاريخ","       البيان","المبلغ عليه","المبلغ له","ملاحضه1","ملاحضه2","ملاحضه3","ملاحضه4","ملاحضه5"]
[]
[]
[]
[]
[]
[]
[]
[]
[]
[]
[]
[]
[]
[]
[]
[]
[]
[null,null,"الاجمالي"]

{"sheet":"107","index":99,"n_rows":24,"n_cols":14,"rows_kept":24,"cut":false,"hidden":false,"merged":[[0,11,0,12],[0,13,0,14],[1,11,1,12],[1,13,1,14],[2,11,2,12],[2,13,2,14]]}
[null,null,null,null,null,null,null,null,null,null,null,"الاجمالي عليه",null,{"$f":"SUM(D7:D24)","v":0}]
[null,null,null,null,null,null,null,null,null,null,null,"المتبقي",null,{"$f":"N1-N3","v":0}]
[null,null,null,null,null,null,null,null,null,null,null,"الاجمالي له",null,{"$f":"SUM(E7:E24)","v":0}]
[]
[]
[null,"     التاريخ","       البيان","المبلغ عليه","المبلغ له","ملاحضه1","ملاحضه2","ملاحضه3","ملاحضه4","ملاحضه5"]
[]
[]
[]
[]
[]
[]
[]
[]
[]
[]
[]
[]
[]
[]
[]
[]
[]
[null,null,"الاجمالي"]

{"sheet":"108","index":100,"n_rows":24,"n_cols":14,"rows_kept":24,"cut":false,"hidden":false,"merged":[[0,11,0,12],[0,13,0,14],[1,11,1,12],[1,13,1,14],[2,11,2,12],[2,13,2,14]]}
[null,null,null,null,null,null,null,null,null,null,null,"الاجمالي عليه",null,{"$f":"SUM(D7:D24)","v":0}]
[null,null,null,null,null,null,null,null,null,null,null,"المتبقي",null,{"$f":"N1-N3","v":0}]
[null,null,null,null,null,null,null,null,null,null,null,"الاجمالي له",null,{"$f":"SUM(E7:E24)","v":0}]
[]
[]
[null,"     التاريخ","       البيان","المبلغ عليه","المبلغ له","ملاحضه1","ملاحضه2","ملاحضه3","ملاحضه4","ملاحضه5"]
[]
[]
[]
[]
[]
[]
[]
[]
[]
[]
[]
[]
[]
[]
[]
[]
[]
[null,null,"الاجمالي"]

{"sheet":"109","index":101,"n_rows":24,"n_cols":14,"rows_kept":24,"cut":false,"hidden":false,"merged":[[0,11,0,12],[0,13,0,14],[1,11,1,12],[1,13,1,14],[2,11,2,12],[2,13,2,14]]}
[null,null,null,null,null,null,null,null,null,null,null,"الاجمالي عليه",null,{"$f":"SUM(D7:D24)","v":0}]
[null,null,null,null,null,null,null,null,null,null,null,"المتبقي",null,{"$f":"N1-N3","v":0}]
[null,null,null,null,null,null,null,null,null,null,null,"الاجمالي له",null,{"$f":"SUM(E7:E24)","v":0}]
[]
[]
[null,"     التاريخ","       البيان","المبلغ عليه","المبلغ له","ملاحضه1","ملاحضه2","ملاحضه3","ملاحضه4","ملاحضه5"]
[]
[]
[]
[]
[]
[]
[]
[]
[]
[]
[]
[]
[]
[]
[]
[]
[]
[null,null,"الاجمالي"]

{"sheet":"110","index":102,"n_rows":24,"n_cols":14,"rows_kept":24,"cut":false,"hidden":false,"merged":[[0,11,0,12],[0,13,0,14],[1,11,1,12],[1,13,1,14],[2,11,2,12],[2,13,2,14]]}
[null,null,null,null,null,null,null,null,null,null,null,"الاجمالي عليه",null,{"$f":"SUM(D7:D24)","v":0}]
[null,null,null,null,null,null,null,null,null,null,null,"المتبقي",null,{"$f":"N1-N3","v":0}]
[null,null,null,null,null,null,null,null,null,null,null,"الاجمالي له",null,{"$f":"SUM(E7:E24)","v":0}]
[]
[]
[null,"     التاريخ","       البيان","المبلغ عليه","المبلغ له","ملاحضه1","ملاحضه2","ملاحضه3","ملاحضه4","ملاحضه5"]
[]
[]
[]
[]
[]
[]
[]
[]
[]
[]
[]
[]
[]
[]
[]
[]
[]
[null,null,"الاجمالي"]

{"sheet":"111","index":103,"n_rows":24,"n_cols":14,"rows_kept":24,"cut":false,"hidden":false,"merged":[[0,11,0,12],[0,13,0,14],[1,11,1,12],[1,13,1,14],[2,11,2,12],[2,13,2,14]]}
[null,null,null,null,null,null,null,null,null,null,null,"الاجمالي عليه",null,{"$f":"SUM(D7:D24)","v":0}]
[null,null,null,null,null,null,null,null,null,null,null,"المتبقي",null,{"$f":"N1-N3","v":0}]
[null,null,null,null,null,null,null,null,null,null,null,"الاجمالي له",null,{"$f":"SUM(E7:E24)","v":0}]
[]
[]
[null,"     التاريخ","       البيان","المبلغ عليه","المبلغ له","ملاحضه1","ملاحضه2","ملاحضه3","ملاحضه4","ملاحضه5"]
[]
[]
[]
[]
[]
[]
[]
[]
[]
[]
[]
[]
[]
[]
[]
[]
[]
[null,null,"الاجمالي"]

{"sheet":"112","index":104,"n_rows":24,"n_cols":14,"rows_kept":24,"cut":false,"hidden":false,"merged":[[0,11,0,12],[0,13,0,14],[1,11,1,12],[1,13,1,14],[2,11,2,12],[2,13,2,14]]}
[null,null,null,null,null,null,null,null,null,null,null,"الاجمالي عليه",null,{"$f":"SUM(D7:D24)","v":0}]
[null,null,null,null,null,null,null,null,null,null,null,"المتبقي",null,{"$f":"N1-N3","v":0}]
[null,null,null,null,null,null,null,null,null,null,null,"الاجمالي له",null,{"$f":"SUM(E7:E24)","v":0}]
[]
[]
[null,"     التاريخ","       البيان","المبلغ عليه","المبلغ له","ملاحضه1","ملاحضه2","ملاحضه3","ملاحضه4","ملاحضه5"]
[]
[]
[]
[]
[]
[]
[]
[]
[]
[]
[]
[]
[]
[]
[]
[]
[]
[null,null,"الاجمالي"]

{"sheet":"113","index":105,"n_rows":24,"n_cols":14,"rows_kept":24,"cut":false,"hidden":false,"merged":[[0,11,0,12],[0,13,0,14],[1,11,1,12],[1,13,1,14],[2,11,2,12],[2,13,2,14]]}
[null,null,null,null,null,null,null,null,null,null,null,"الاجمالي عليه",null,{"$f":"SUM(D7:D24)","v":0}]
[null,null,null,null,null,null,null,null,null,null,null,"المتبقي",null,{"$f":"N1-N3","v":0}]
[null,null,null,null,null,null,null,null,null,null,null,"الاجمالي له",null,{"$f":"SUM(E7:E24)","v":0}]
[]
[]
[null,"     التاريخ","       البيان","المبلغ عليه","المبلغ له","ملاحضه1","ملاحضه2","ملاحضه3","ملاحضه4","ملاحضه5"]
[]
[]
[]
[]
[]
[]
[]
[]
[]
[]
[]
[]
[]
[]
[]
[]
[]
[null,null,"الاجمالي"]

{"sheet":"114","index":106,"n_rows":24,"n_cols":14,"rows_kept":24,"cut":false,"hidden":false,"merged":[[0,11,0,12],[0,13,0,14],[1,11,1,12],[1,13,1,14],[2,11,2,12],[2,13,2,14]]}
[null,null,null,null,null,null,null,null,null,null,null,"الاجمالي عليه",null,{"$f":"SUM(D7:D24)","v":0}]
[null,null,null,null,null,null,null,null,null,null,null,"المتبقي",null,{"$f":"N1-N3","v":0}]
[null,null,null,null,null,null,null,null,null,null,null,"الاجمالي له",null,{"$f":"SUM(E7:E24)","v":0}]
[]
[]
[null,"     التاريخ","       البيان","المبلغ عليه","المبلغ له","ملاحضه1","ملاحضه2","ملاحضه3","ملاحضه4","ملاحضه5"]
[]
[]
[]
[]
[]
[]
[]
[]
[]
[]
[]
[]
[]
[]
[]
[]
[]
[null,null,"الاجمالي"]

{"sheet":"115","index":107,"n_rows":24,"n_cols":14,"rows_kept":24,"cut":false,"hidden":false,"merged":[[0,11,0,12],[0,13,0,14],[1,11,1,12],[1,13,1,14],[2,11,2,12],[2,13,2,14]]}
[null,null,null,null,null,null,null,null,null,null,null,"الاجمالي عليه",null,{"$f":"SUM(D7:D24)","v":0}]
[null,null,null,null,null,null,null,null,null,null,null,"المتبقي",null,{"$f":"N1-N3","v":0}]
[null,null,null,null,null,null,null,null,null,null,null,"الاجمالي له",null,{"$f":"SUM(E7:E24)","v":0}]
[]
[]
[null,"     التاريخ","       البيان","المبلغ عليه","المبلغ له","ملاحضه1","ملاحضه2","ملاحضه3","ملاحضه4","ملاحضه5"]
[]
[]
[]
[]
[]
[]
[]
[]
[]
[]
[]
[]
[]
[]
[]
[]
[]
[null,null,"الاجمالي"]

{"sheet":"116","index":108,"n_rows":24,"n_cols":14,"rows_kept":24,"cut":false,"hidden":false,"merged":[[0,11,0,12],[0,13,0,14],[1,11,1,12],[1,13,1,14],[2,11,2,12],[2,13,2,14]]}
[null,null,null,null,null,null,null,null,null,null,null,"الاجمالي عليه",null,{"$f":"SUM(D7:D24)","v":0}]
[null,null,null,null,null,null,null,null,null,null,null,"المتبقي",null,{"$f":"N1-N3","v":0}]
[null,null,null,null,null,null,null,null,null,null,null,"الاجمالي له",null,{"$f":"SUM(E7:E24)","v":0}]
[]
[]
[null,"     التاريخ","       البيان","المبلغ عليه","المبلغ له","ملاحضه1","ملاحضه2","ملاحضه3","ملاحضه4","ملاحضه5"]
[]
[]
[]
[]
[]
[]
[]
[]
[]
[]
[]
[]
[]
[]
[]
[]
[]
[null,null,"الاجمالي"]

{"sheet":"ا (2)","index":109,"n_rows":3,"n_cols":11,"rows_kept":3,"cut":false,"hidden":false,"merged":[]}
[]
[]
[null,"رقم العميل","     التاريخ","       البيان","المبلغ عليه","المبلغ له","ملاحضه1","ملاحضه2","ملاحضه3","ملاحضه4","ملاحضه5"]

{"sheet":"117","index":110,"n_rows":24,"n_cols":14,"rows_kept":24,"cut":false,"hidden":false,"merged":[[0,11,0,12],[0,13,0,14],[1,11,1,12],[1,13,1,14],[2,11,2,12],[2,13,2,14]]}
[null,null,null,null,null,null,null,null,null,null,null,"الاجمالي عليه",null,{"$f":"SUM(D7:D24)","v":0}]
[null,null,null,null,null,null,null,null,null,null,null,"المتبقي",null,{"$f":"N1-N3","v":0}]
[null,null,null,null,null,null,null,null,null,null,null,"الاجمالي له",null,{"$f":"SUM(E7:E24)","v":0}]
[]
[]
[null,"     التاريخ","       البيان","المبلغ عليه","المبلغ له","ملاحضه1","ملاحضه2","ملاحضه3","ملاحضه4","ملاحضه5"]
[]
[]
[]
[]
[]
[]
[]
[]
[]
[]
[]
[]
[]
[]
[]
[]
[]
[null,null,"الاجمالي"]

{"sheet":"118","index":111,"n_rows":24,"n_cols":14,"rows_kept":24,"cut":false,"hidden":false,"merged":[[0,11,0,12],[0,13,0,14],[1,11,1,12],[1,13,1,14],[2,11,2,12],[2,13,2,14]]}
[null,null,null,null,null,null,null,null,null,null,null,"الاجمالي عليه",null,{"$f":"SUM(D7:D24)","v":0}]
[null,null,null,null,null,null,null,null,null,null,null,"المتبقي",null,{"$f":"N1-N3","v":0}]
[null,null,null,null,null,null,null,null,null,null,null,"الاجمالي له",null,{"$f":"SUM(E7:E24)","v":0}]
[]
[]
[null,"     التاريخ","       البيان","المبلغ عليه","المبلغ له","ملاحضه1","ملاحضه2","ملاحضه3","ملاحضه4","ملاحضه5"]
[]
[]
[]
[]
[]
[]
[]
[]
[]
[]
[]
[]
[]
[]
[]
[]
[]
[null,null,"الاجمالي"]

{"sheet":"119","index":112,"n_rows":24,"n_cols":14,"rows_kept":24,"cut":false,"hidden":false,"merged":[[0,11,0,12],[0,13,0,14],[1,11,1,12],[1,13,1,14],[2,11,2,12],[2,13,2,14]]}
[null,null,null,null,null,null,null,null,null,null,null,"الاجمالي عليه",null,{"$f":"SUM(D7:D24)","v":0}]
[null,null,null,null,null,null,null,null,null,null,null,"المتبقي",null,{"$f":"N1-N3","v":0}]
[null,null,null,null,null,null,null,null,null,null,null,"الاجمالي له",null,{"$f":"SUM(E7:E24)","v":0}]
[]
[]
[null,"     التاريخ","       البيان","المبلغ عليه","المبلغ له","ملاحضه1","ملاحضه2","ملاحضه3","ملاحضه4","ملاحضه5"]
[]
[]
[]
[]
[]
[]
[]
[]
[]
[]
[]
[]
[]
[]
[]
[]
[]
[null,null,"الاجمالي"]

{"sheet":"120","index":113,"n_rows":24,"n_cols":14,"rows_kept":24,"cut":false,"hidden":false,"merged":[[0,11,0,12],[0,13,0,14],[1,11,1,12],[1,13,1,14],[2,11,2,12],[2,13,2,14]]}
[null,null,null,null,null,null,null,null,null,null,null,"الاجمالي عليه",null,{"$f":"SUM(D7:D24)","v":0}]
[null,null,null,null,null,null,null,null,null,null,null,"المتبقي",null,{"$f":"N1-N3","v":0}]
[null,null,null,null,null,null,null,null,null,null,null,"الاجمالي له",null,{"$f":"SUM(E7:E24)","v":0}]
[]
[]
[null,"     التاريخ","       البيان","المبلغ عليه","المبلغ له","ملاحضه1","ملاحضه2","ملاحضه3","ملاحضه4","ملاحضه5"]
[]
[]
[]
[]
[]
[]
[]
[]
[]
[]
[]
[]
[]
[]
[]
[]
[]
[null,null,"الاجمالي"]

{"sheet":"121","index":114,"n_rows":24,"n_cols":14,"rows_kept":24,"cut":false,"hidden":false,"merged":[[0,11,0,12],[0,13,0,14],[1,11,1,12],[1,13,1,14],[2,11,2,12],[2,13,2,14]]}
[null,null,null,null,null,null,null,null,null,null,null,"الاجمالي عليه",null,{"$f":"SUM(D7:D24)","v":0}]
[null,null,null,null,null,null,null,null,null,null,null,"المتبقي",null,{"$f":"N1-N3","v":0}]
[null,null,null,null,null,null,null,null,null,null,null,"الاجمالي له",null,{"$f":"SUM(E7:E24)","v":0}]
[]
[]
[null,"     التاريخ","       البيان","المبلغ عليه","المبلغ له","ملاحضه1","ملاحضه2","ملاحضه3","ملاحضه4","ملاحضه5"]
[]
[]
[]
[]
[]
[]
[]
[]
[]
[]
[]
[]
[]
[]
[]
[]
[]
[null,null,"الاجمالي"]

{"sheet":"122","index":115,"n_rows":24,"n_cols":14,"rows_kept":24,"cut":false,"hidden":false,"merged":[[0,11,0,12],[0,13,0,14],[1,11,1,12],[1,13,1,14],[2,11,2,12],[2,13,2,14]]}
[null,null,null,null,null,null,null,null,null,null,null,"الاجمالي عليه",null,{"$f":"SUM(D7:D24)","v":0}]
[null,null,null,null,null,null,null,null,null,null,null,"المتبقي",null,{"$f":"N1-N3","v":0}]
[null,null,null,null,null,null,null,null,null,null,null,"الاجمالي له",null,{"$f":"SUM(E7:E24)","v":0}]
[]
[]
[null,"     التاريخ","       البيان","المبلغ عليه","المبلغ له","ملاحضه1","ملاحضه2","ملاحضه3","ملاحضه4","ملاحضه5"]
[]
[]
[]
[]
[]
[]
[]
[]
[]
[]
[]
[]
[]
[]
[]
[]
[]
[null,null,"الاجمالي"]

{"sheet":"123","index":116,"n_rows":24,"n_cols":14,"rows_kept":24,"cut":false,"hidden":false,"merged":[[0,11,0,12],[0,13,0,14],[1,11,1,12],[1,13,1,14],[2,11,2,12],[2,13,2,14]]}
[null,null,null,null,null,null,null,null,null,null,null,"الاجمالي عليه",null,{"$f":"SUM(D7:D24)","v":0}]
[null,null,null,null,null,null,null,null,null,null,null,"المتبقي",null,{"$f":"N1-N3","v":0}]
[null,null,null,null,null,null,null,null,null,null,null,"الاجمالي له",null,{"$f":"SUM(E7:E24)","v":0}]
[]
[]
[null,"     التاريخ","       البيان","المبلغ عليه","المبلغ له","ملاحضه1","ملاحضه2","ملاحضه3","ملاحضه4","ملاحضه5"]
[]
[]
[]
[]
[]
[]
[]
[]
[]
[]
[]
[]
[]
[]
[]
[]
[]
[null,null,"الاجمالي"]

{"sheet":"124","index":117,"n_rows":24,"n_cols":14,"rows_kept":24,"cut":false,"hidden":false,"merged":[[0,11,0,12],[0,13,0,14],[1,11,1,12],[1,13,1,14],[2,11,2,12],[2,13,2,14]]}
[null,null,null,null,null,null,null,null,null,null,null,"الاجمالي عليه",null,{"$f":"SUM(D7:D24)","v":0}]
[null,null,null,null,null,null,null,null,null,null,null,"المتبقي",null,{"$f":"N1-N3","v":0}]
[null,null,null,null,null,null,null,null,null,null,null,"الاجمالي له",null,{"$f":"SUM(E7:E24)","v":0}]
[]
[]
[null,"     التاريخ","       البيان","المبلغ عليه","المبلغ له","ملاحضه1","ملاحضه2","ملاحضه3","ملاحضه4","ملاحضه5"]
[]
[]
[]
[]
[]
[]
[]
[]
[]
[]
[]
[]
[]
[]
[]
[]
[]
[null,null,"الاجمالي"]

{"sheet":"125","index":118,"n_rows":24,"n_cols":14,"rows_kept":24,"cut":false,"hidden":false,"merged":[[0,11,0,12],[0,13,0,14],[1,11,1,12],[1,13,1,14],[2,11,2,12],[2,13,2,14]]}
[null,null,null,null,null,null,null,null,null,null,null,"الاجمالي عليه",null,{"$f":"SUM(D7:D24)","v":0}]
[null,null,null,null,null,null,null,null,null,null,null,"المتبقي",null,{"$f":"N1-N3","v":0}]
[null,null,null,null,null,null,null,null,null,null,null,"الاجمالي له",null,{"$f":"SUM(E7:E24)","v":0}]
[]
[]
[null,"     التاريخ","       البيان","المبلغ عليه","المبلغ له","ملاحضه1","ملاحضه2","ملاحضه3","ملاحضه4","ملاحضه5"]
[]
[]
[]
[]
[]
[]
[]
[]
[]
[]
[]
[]
[]
[]
[]
[]
[]
[null,null,"الاجمالي"]

{"sheet":"126","index":119,"n_rows":24,"n_cols":14,"rows_kept":24,"cut":false,"hidden":false,"merged":[[0,11,0,12],[0,13,0,14],[1,11,1,12],[1,13,1,14],[2,11,2,12],[2,13,2,14]]}
[null,null,null,null,null,null,null,null,null,null,null,"الاجمالي عليه",null,{"$f":"SUM(D7:D24)","v":0}]
[null,null,null,null,null,null,null,null,null,null,null,"المتبقي",null,{"$f":"N1-N3","v":0}]
[null,null,null,null,null,null,null,null,null,null,null,"الاجمالي له",null,{"$f":"SUM(E7:E24)","v":0}]
[]
[]
[null,"     التاريخ","       البيان","المبلغ عليه","المبلغ له","ملاحضه1","ملاحضه2","ملاحضه3","ملاحضه4","ملاحضه5"]
[]
[]
[]
[]
[]
[]
[]
[]
[]
[]
[]
[]
[]
[]
[]
[]
[]
[null,null,"الاجمالي"]

{"sheet":"127","index":120,"n_rows":24,"n_cols":14,"rows_kept":24,"cut":false,"hidden":false,"merged":[[0,11,0,12],[0,13,0,14],[1,11,1,12],[1,13,1,14],[2,11,2,12],[2,13,2,14]]}
[null,null,null,null,null,null,null,null,null,null,null,"الاجمالي عليه",null,{"$f":"SUM(D7:D24)","v":0}]
[null,null,null,null,null,null,null,null,null,null,null,"المتبقي",null,{"$f":"N1-N3","v":0}]
[null,null,null,null,null,null,null,null,null,null,null,"الاجمالي له",null,{"$f":"SUM(E7:E24)","v":0}]
[]
[]
[null,"     التاريخ","       البيان","المبلغ عليه","المبلغ له","ملاحضه1","ملاحضه2","ملاحضه3","ملاحضه4","ملاحضه5"]
[]
[]
[]
[]
[]
[]
[]
[]
[]
[]
[]
[]
[]
[]
[]
[]
[]
[null,null,"الاجمالي"]

{"sheet":"128","index":121,"n_rows":24,"n_cols":14,"rows_kept":24,"cut":false,"hidden":false,"merged":[[0,11,0,12],[0,13,0,14],[1,11,1,12],[1,13,1,14],[2,11,2,12],[2,13,2,14]]}
[null,null,null,null,null,null,null,null,null,null,null,"الاجمالي عليه",null,{"$f":"SUM(D7:D24)","v":0}]
[null,null,null,null,null,null,null,null,null,null,null,"المتبقي",null,{"$f":"N1-N3","v":0}]
[null,null,null,null,null,null,null,null,null,null,null,"الاجمالي له",null,{"$f":"SUM(E7:E24)","v":0}]
[]
[]
[null,"     التاريخ","       البيان","المبلغ عليه","المبلغ له","ملاحضه1","ملاحضه2","ملاحضه3","ملاحضه4","ملاحضه5"]
[]
[]
[]
[]
[]
[]
[]
[]
[]
[]
[]
[]
[]
[]
[]
[]
[]
[null,null,"الاجمالي"]

{"sheet":"129","index":122,"n_rows":24,"n_cols":14,"rows_kept":24,"cut":false,"hidden":false,"merged":[[0,11,0,12],[0,13,0,14],[1,11,1,12],[1,13,1,14],[2,11,2,12],[2,13,2,14]]}
[null,null,null,null,null,null,null,null,null,null,null,"الاجمالي عليه",null,{"$f":"SUM(D7:D24)","v":0}]
[null,null,null,null,null,null,null,null,null,null,null,"المتبقي",null,{"$f":"N1-N3","v":0}]
[null,null,null,null,null,null,null,null,null,null,null,"الاجمالي له",null,{"$f":"SUM(E7:E24)","v":0}]
[]
[]
[null,"     التاريخ","       البيان","المبلغ عليه","المبلغ له","ملاحضه1","ملاحضه2","ملاحضه3","ملاحضه4","ملاحضه5"]
[]
[]
[]
[]
[]
[]
[]
[]
[]
[]
[]
[]
[]
[]
[]
[]
[]
[null,null,"الاجمالي"]

{"sheet":"130","index":123,"n_rows":24,"n_cols":14,"rows_kept":24,"cut":false,"hidden":false,"merged":[[0,11,0,12],[0,13,0,14],[1,11,1,12],[1,13,1,14],[2,11,2,12],[2,13,2,14]]}
[null,null,null,null,null,null,null,null,null,null,null,"الاجمالي عليه",null,{"$f":"SUM(D7:D24)","v":0}]
[null,null,null,null,null,null,null,null,null,null,null,"المتبقي",null,{"$f":"N1-N3","v":0}]
[null,null,null,null,null,null,null,null,null,null,null,"الاجمالي له",null,{"$f":"SUM(E7:E24)","v":0}]
[]
[]
[null,"     التاريخ","       البيان","المبلغ عليه","المبلغ له","ملاحضه1","ملاحضه2","ملاحضه3","ملاحضه4","ملاحضه5"]
[]
[]
[]
[]
[]
[]
[]
[]
[]
[]
[]
[]
[]
[]
[]
[]
[]
[null,null,"الاجمالي"]

{"sheet":"131","index":124,"n_rows":24,"n_cols":14,"rows_kept":24,"cut":false,"hidden":false,"merged":[[0,11,0,12],[0,13,0,14],[1,11,1,12],[1,13,1,14],[2,11,2,12],[2,13,2,14]]}
[null,null,null,null,null,null,null,null,null,null,null,"الاجمالي عليه",null,{"$f":"SUM(D7:D24)","v":0}]
[null,null,null,null,null,null,null,null,null,null,null,"المتبقي",null,{"$f":"N1-N3","v":0}]
[null,null,null,null,null,null,null,null,null,null,null,"الاجمالي له",null,{"$f":"SUM(E7:E24)","v":0}]
[]
[]
[null,"     التاريخ","       البيان","المبلغ عليه","المبلغ له","ملاحضه1","ملاحضه2","ملاحضه3","ملاحضه4","ملاحضه5"]
[]
[]
[]
[]
[]
[]
[]
[]
[]
[]
[]
[]
[]
[]
[]
[]
[]
[null,null,"الاجمالي"]

{"sheet":"132","index":125,"n_rows":24,"n_cols":14,"rows_kept":24,"cut":false,"hidden":false,"merged":[[0,11,0,12],[0,13,0,14],[1,11,1,12],[1,13,1,14],[2,11,2,12],[2,13,2,14]]}
[null,null,null,null,null,null,null,null,null,null,null,"الاجمالي عليه",null,{"$f":"SUM(D7:D24)","v":0}]
[null,null,null,null,null,null,null,null,null,null,null,"المتبقي",null,{"$f":"N1-N3","v":0}]
[null,null,null,null,null,null,null,null,null,null,null,"الاجمالي له",null,{"$f":"SUM(E7:E24)","v":0}]
[]
[]
[null,"     التاريخ","       البيان","المبلغ عليه","المبلغ له","ملاحضه1","ملاحضه2","ملاحضه3","ملاحضه4","ملاحضه5"]
[]
[]
[]
[]
[]
[]
[]
[]
[]
[]
[]
[]
[]
[]
[]
[]
[]
[null,null,"الاجمالي"]

{"sheet":"133","index":126,"n_rows":24,"n_cols":14,"rows_kept":24,"cut":false,"hidden":false,"merged":[[0,11,0,12],[0,13,0,14],[1,11,1,12],[1,13,1,14],[2,11,2,12],[2,13,2,14]]}
[null,null,null,null,null,null,null,null,null,null,null,"الاجمالي عليه",null,{"$f":"SUM(D7:D24)","v":0}]
[null,null,null,null,null,null,null,null,null,null,null,"المتبقي",null,{"$f":"N1-N3","v":0}]
[null,null,null,null,null,null,null,null,null,null,null,"الاجمالي له",null,{"$f":"SUM(E7:E24)","v":0}]
[]
[]
[null,"     التاريخ","       البيان","المبلغ عليه","المبلغ له","ملاحضه1","ملاحضه2","ملاحضه3","ملاحضه4","ملاحضه5"]
[]
[]
[]
[]
[]
[]
[]
[]
[]
[]
[]
[]
[]
[]
[]
[]
[]
[null,null,"الاجمالي"]

{"sheet":"134","index":127,"n_rows":24,"n_cols":14,"rows_kept":24,"cut":false,"hidden":false,"merged":[[0,11,0,12],[0,13,0,14],[1,11,1,12],[1,13,1,14],[2,11,2,12],[2,13,2,14]]}
[null,null,null,null,null,null,null,null,null,null,null,"الاجمالي عليه",null,{"$f":"SUM(D7:D24)","v":20}]
[null,null,null,null,null,null,null,null,null,null,null,"المتبقي",null,{"$f":"N1-N3","v":20}]
[null,null,null,null,null,null,null,null,null,null,null,"الاجمالي له",null,{"$f":"SUM(E7:E24)","v":0}]
[]
[]
[null,"     التاريخ","       البيان","المبلغ عليه","المبلغ له","ملاحضه1","ملاحضه2","ملاحضه3","ملاحضه4","ملاحضه5"]
[null,"2018-12-20","قات",20]
[]
[]
[]
[]
[]
[]
[]
[]
[]
[]
[]
[]
[]
[]
[]
[]
[null,null,"الاجمالي"]

{"sheet":"data","index":128,"n_rows":5,"n_cols":11,"rows_kept":5,"cut":false,"hidden":false,"merged":[[2,14,2,15],[2,16,2,17],[0,2,0,4],[0,14,0,15],[0,16,0,17],[1,2,1,4],[1,14,1,15],[1,16,1,17]]}
[null,null,"التاريخ"]
[null,null,"2018-12-20"]
[]
[]
["رقم الشيت","رقم الخلية","رقم العميل","التاريخ","البيان","المبلغ عليه","المبلغ له","ملاحضه1","ملاحضة2","ملاحضه3","ملاحضة4"]

{"sheet":"ا","index":129,"n_rows":4,"n_cols":11,"rows_kept":4,"cut":false,"hidden":false,"merged":[]}
[]
[]
[null,"رقم العميل","     التاريخ","       البيان","المبلغ عليه","المبلغ له","ملاحضه1","ملاحضه2","ملاحضه3","ملاحضه4","ملاحضه5"]
[null,100,"2018-12-20","قات",10000]

{"sheet":"3","index":130,"n_rows":24,"n_cols":14,"rows_kept":24,"cut":false,"hidden":false,"merged":[[0,11,0,12],[0,13,0,14],[1,11,1,12],[1,13,1,14],[2,11,2,12],[2,13,2,14]]}
[null,null,null,null,null,null,null,null,null,null,null,"الاجمالي عليه",null,{"$f":"SUM(D7:D24)","v":0}]
[null,null,null,null,null,null,null,null,null,null,null,"المتبقي",null,{"$f":"N1-N3","v":0}]
[null,null,null,null,null,null,null,null,null,null,null,"الاجمالي له",null,{"$f":"SUM(E7:E24)","v":0}]
[]
[]
[null,"     التاريخ","       البيان","المبلغ عليه","المبلغ له","ملاحضه1","ملاحضه2","ملاحضه3","ملاحضه4","ملاحضه5"]
[]
[]
[]
[]
[]
[]
[]
[]
[]
[]
[]
[]
[]
[]
[]
[]
[]
[null,null,"الاجمالي"]

{"sheet":"4","index":131,"n_rows":24,"n_cols":14,"rows_kept":24,"cut":false,"hidden":false,"merged":[[0,11,0,12],[0,13,0,14],[1,11,1,12],[1,13,1,14],[2,11,2,12],[2,13,2,14]]}
[null,null,null,null,null,null,null,null,null,null,null,"الاجمالي عليه",null,{"$f":"SUM(D7:D24)","v":0}]
[null,null,null,null,null,null,null,null,null,null,null,"المتبقي",null,{"$f":"N1-N3","v":0}]
[null,null,null,null,null,null,null,null,null,null,null,"الاجمالي له",null,{"$f":"SUM(E7:E24)","v":0}]
[]
[]
[null,"     التاريخ","       البيان","المبلغ عليه","المبلغ له","ملاحضه1","ملاحضه2","ملاحضه3","ملاحضه4","ملاحضه5"]
[]
[]
[]
[]
[]
[]
[]
[]
[]
[]
[]
[]
[]
[]
[]
[]
[]
[null,null,"الاجمالي"]

{"sheet":"5","index":132,"n_rows":24,"n_cols":14,"rows_kept":24,"cut":false,"hidden":false,"merged":[[0,11,0,12],[0,13,0,14],[1,11,1,12],[1,13,1,14],[2,11,2,12],[2,13,2,14]]}
[null,null,null,null,null,null,null,null,null,null,null,"الاجمالي عليه",null,{"$f":"SUM(D7:D24)","v":0}]
[null,null,null,null,null,null,null,null,null,null,null,"المتبقي",null,{"$f":"N1-N3","v":0}]
[null,null,null,null,null,null,null,null,null,null,null,"الاجمالي له",null,{"$f":"SUM(E7:E24)","v":0}]
[]
[]
[null,"     التاريخ","       البيان","المبلغ عليه","المبلغ له","ملاحضه1","ملاحضه2","ملاحضه3","ملاحضه4","ملاحضه5"]
[]
[]
[]
[]
[]
[]
[]
[]
[]
[]
[]
[]
[]
[]
[]
[]
[]
[null,null,"الاجمالي"]

{"sheet":"6","index":133,"n_rows":24,"n_cols":14,"rows_kept":24,"cut":false,"hidden":false,"merged":[[0,11,0,12],[0,13,0,14],[1,11,1,12],[1,13,1,14],[2,11,2,12],[2,13,2,14]]}
[null,null,null,null,null,null,null,null,null,null,null,"الاجمالي عليه",null,{"$f":"SUM(D7:D24)","v":0}]
[null,null,null,null,null,null,null,null,null,null,null,"المتبقي",null,{"$f":"N1-N3","v":0}]
[null,null,null,null,null,null,null,null,null,null,null,"الاجمالي له",null,{"$f":"SUM(E7:E24)","v":0}]
[]
[]
[null,"     التاريخ","       البيان","المبلغ عليه","المبلغ له","ملاحضه1","ملاحضه2","ملاحضه3","ملاحضه4","ملاحضه5"]
[]
[]
[]
[]
[]
[]
[]
[]
[]
[]
[]
[]
[]
[]
[]
[]
[]
[null,null,"الاجمالي"]

{"sheet":"العميل","index":134,"n_rows":24,"n_cols":14,"rows_kept":24,"cut":false,"hidden":false,"merged":[[0,11,0,12],[0,13,0,14],[1,11,1,12],[1,13,1,14],[2,11,2,12],[2,13,2,14]]}
[null,null,null,null,null,null,null,null,null,null,null,"الاجمالي عليه",null,{"$f":"SUM(D7:D24)","v":0}]
[null,null,null,null,null,null,null,null,null,null,null,"المتبقي",null,{"$f":"N1-N3","v":0}]
[null,null,null,null,null,null,null,null,null,null,null,"الاجمالي له",null,{"$f":"SUM(E7:E24)","v":0}]
[]
[]
[null,"     التاريخ","       البيان","المبلغ عليه","المبلغ له","ملاحضه1","ملاحضه2","ملاحضه3","ملاحضه4","ملاحضه5"]
[]
[]
[]
[]
[]
[]
[]
[]
[]
[]
[]
[]
[]
[]
[]
[]
[]
[null,null,"الاجمالي"]

{"sheet":"الرئسيه","index":135,"n_rows":0,"n_cols":0,"rows_kept":0,"cut":false,"hidden":false,"merged":[]}

{"sheet":"كشف حساب","index":136,"n_rows":0,"n_cols":0,"rows_kept":0,"cut":false,"hidden":false,"merged":[]}

{"sheet":"العملاء","index":137,"n_rows":0,"n_cols":0,"rows_kept":0,"cut":false,"hidden":false,"merged":[]}

{"sheet":"صرف العملات","index":138,"n_rows":3,"n_cols":1,"rows_kept":3,"cut":false,"hidden":false,"merged":[]}
["100'!A1"]
["101'!A1"]
["102'!A1"]

{"sheet":"ورقة5","index":139,"n_rows":0,"n_cols":0,"rows_kept":0,"cut":false,"hidden":false,"merged":[]}

{"sheet":"ورقة6","index":140,"n_rows":0,"n_cols":0,"rows_kept":0,"cut":false,"hidden":false,"merged":[]}

{"sheet":"ورقة7","index":141,"n_rows":0,"n_cols":0,"rows_kept":0,"cut":false,"hidden":false,"merged":[]}

{"sheet":"ورقة8","index":142,"n_rows":0,"n_cols":0,"rows_kept":0,"cut":false,"hidden":false,"merged":[]}